Cogmind - Beta 15 @@@ ROGUE MODE // 2025.07.17 @ 05:53:43 Player: cptwinky Result: Destroyed by Executioner with Helical Railgun Performance ------------- Evolutions (8) 4000 Regions Visited (28) 5600 Robots Destroyed (602) 3010 Value Destroyed (35517) 35517 Prototype IDs (108) 2160 Alien Tech Used (6) 1200 Bonus (21723) 21723 TOTAL SCORE: 73210 Bonus ------- High Alert Combat Kills 14384 Follower Combat Kills 2827 Network Hubs Disabled 400 Registered with UFD 300 Met Optimus in HQ 500 Met Zhirov 300 Built Enhanced Grunts 300 A7 Reached Mainframe 300 Met R17 at Cetus 500 Met R17 at Research 2000 Met Optimus at Protoforge 1000 Friendly Fire -1088 Cogmind --------- Core Integrity 0/1450 Matter 300/300 Energy 740/740 System Corruption 19% Temperature Cool (0) Movement Treading (160) Ox1 Location -2/Protoforge Parts ------- > --- POWER (3) -------- Reinforced Antimatter Reactor (fused) Overtuned Antimatter Reactor (fused) Light Quantum Reactor > --- PROPULSION (7) --- Overtuned Medium Treads (fused) Overtuned Medium Treads (fused) Overtuned Medium Treads (fused) Overtuned Huge Scrapsphere Overtuned Huge Scrapsphere > --- UTILITY (11) ----- 0bPrime Scrap Suit Experimental Optical Array Experimental Targeting Computer Experimental Core Analyzer Makeshift Core Shielding Makeshift Medium Armor Plating (fused) Centrium Light Armor Plating Centrium Light Armor Plating (fused) Graphene Brace (fused) > --- WEAPON (3) ------- Cooled Nova Cannon Overtuned Railgun (fused) Overtuned Bore Cannon > --- INVENTORY (5) ---- Experimental Cooling System Experimental Coolant Injector Experimental Energy Well (600) Concept NT7 Matterbank (750) Helical Railgun Peak State ------------ > --- POWER ------------ Light Quantum Reactor Vortex Chain Reactor > --- PROPULSION ------- High-density Centrium Heavy Treads High-density Centrium Heavy Treads High-density Centrium Heavy Treads Centrium Leg > --- UTILITY ---------- Huge Storage Unit Experimental Signal Interpreter Concept Weapon Articulator Experimental Core Analyzer Experimental Core Analyzer Experimental Armor Integrity Analyzer Experimental Kinecellerator SHELL Armor Experimental Force Field > --- WEAPON ----------- Concept XC Strikerail Concept XC Strikerail Concept XC Strikerail > --- INVENTORY -------- Experimental Power Amplifier Experimental Heat Sink Experimental Cooling System Experimental Coolant Injector Advanced Energy Well Concept NT7 Matterbank Deep Structural Scanner Experimental Sensor Array Graphene Brace Experimental Focal Shield Experimental EM Shield A0-MCA's Component Scanner Long-range Tractor Beam Transdimensional Reconstructor Subatomic Replicator Cooled Nova Cannon Core Cannon Graviton Cannon Micro-nuke Launcher Micro-nuke Launcher Advanced Remote Datajack Core Stripper Kinetic Spear [Rating: 260] Favorites ----------- Power Light Quantum Reactor Engine Improved Ion Engine Power Core Neutrino Core Reactor Light Quantum Reactor Propulsion Spiked Treads Treads Spiked Treads Leg Advanced Myomer Leg Wheel Overtuned Huge Scrapsphere Hover Unit Cooled Antigrav System Flight Unit Improved Diametric Drive Utility Advanced Targeting Computer Device Experimental Cooling System Storage Huge Storage Unit Processor Advanced Targeting Computer Hackware Hacking Suite Protection Centrium Light Armor Plating Weapon Makeshift Sword Energy Gun Small Laser Energy Cannon Cooled Nova Cannon Ballistic Gun Overtuned Railgun Ballistic Cannon Battle Cannon Launcher Micro-nuke Launcher Special Weapon Enhanced Flamer Impact Weapon Core Stripper Slashing Weapon Makeshift Sword Build | -11 -10 -10 -8 -8 -6 -6 -6 -6 -6 -5 -5 -5 -5 -5 -5 -4 -4 -4 -4 -4 -4 -4 -3 -3 -3 -2 -2 -2 ------- Run | Yrd Mat Sub Rec Scr Fac Ext Cet Arc Hub Fac Was Fac Upp Upp Zhi Pro Fac Was Fac Upp Upp War Pro Res Tes Res Qua Frg Slots Evolved 16 | . . . . . 8 . . . . 2 . . . . . . 2 . . . . . . 2 . 2 . . Power 2 | . . . . . 1 . . . . . . . . . . . 1 . . . . . . . . . . . Propulsion 4 | . . . . . 3 . . . . 1 . . . . . . . . . . . . . . . . . . Utility 9 | . . . . . 4 . . . . 1 . . . . . . 1 . . . . . . 1 . 2 . . Weapon 1 | . . . . . . . . . . . . . . . . . . . . . . . . 1 . . . . Parts Attached 362 | 6 6 19 10 4 36 18 5 7 6 20 2 27 4 4 6 7 21 . 7 1 7 11 3 12 15 11 21 66 Power 54 | 1 1 4 2 1 5 3 1 . 1 3 . 4 . . . . 4 . 3 . . 1 . 2 1 3 1 13 Engine 23 | 1 1 4 2 1 4 3 . . 1 2 . . . . . . 1 . 1 . . . . . . . . 2 Core 10 | . . . . . 1 . . . . 1 . 4 . . . . 3 . . . . . . . . . . 1 Reactor 21 | . . . . . . . 1 . . . . . . . . . . . 2 . . 1 . 2 1 3 1 10 Propulsion 87 | 2 . 4 2 2 8 10 2 1 1 1 . 7 . 1 1 2 5 . . . 3 4 2 2 4 1 7 15 Treads 47 | 2 . 3 2 . 4 8 2 1 1 1 . 5 . 1 . 1 5 . . . . . . . . . 4 7 Leg 30 | . . 1 . . 4 . . . . . . . . . 1 1 . . . . 3 2 2 2 4 1 3 6 Wheel 8 | . . . . 2 . 2 . . . . . 2 . . . . . . . . . . . . . . . 2 Hover 1 | . . . . . . . . . . . . . . . . . . . . . . 1 . . . . . . Flight 1 | . . . . . . . . . . . . . . . . . . . . . . 1 . . . . . . Utility 143 | 1 3 2 4 . 17 4 2 6 2 10 1 14 2 1 4 . 10 . 3 1 2 5 1 7 6 4 8 23 Device 76 | . . 1 1 . 7 2 . 4 1 6 . 7 2 . 1 . 7 . 3 1 2 4 . 4 3 2 7 11 Storage 11 | 1 2 . 1 . . . . . 1 1 . . . . 1 . . . . . . . . 1 . 2 . 1 Processor 21 | . . . . . 2 1 . . . 2 . 3 . 1 . . 1 . . . . 1 1 1 2 . 1 5 Hackware 5 | . . . . . 2 . . 1 . 1 . . . . . . . . . . . . . . . . . 1 Protection 30 | . 1 1 2 . 6 1 2 1 . . 1 4 . . 2 . 2 . . . . . . 1 1 . . 5 Artifact . | . . . . . . . . . . . . . . . . . . . . . . . . . . . . . Weapon 78 | 2 2 9 2 1 6 1 . . 2 6 1 2 2 2 1 5 2 . 1 . 2 1 . 1 4 3 5 15 Energy Gun 3 | 2 . . . . . . . . . . . . . . . . . . . . . . . . . . . 1 Energy Cannon 21 | . . . . . 1 1 . . . 2 1 . 1 . . 3 1 . . . 1 1 . 1 1 3 3 1 Ballistic Gun 9 | . . . . . . . . . . . . . . . . 1 . . . . . . . . . . . 8 Ballistic Cannon 30 | . 2 4 1 1 4 . . . 1 2 . 2 . 2 . 1 . . 1 . 1 . . . 3 . 1 4 Launcher 7 | . . 2 . . . . . . 1 . . . 1 . 1 . 1 . . . . . . . . . . 1 Special Weapon 3 | . . 1 1 . . . . . . 1 . . . . . . . . . . . . . . . . . . Impact Weapon 2 | . . 1 . . . . . . . . . . . . . . . . . . . . . . . . 1 . Slashing Weapon 3 | . . 1 . . 1 . . . . 1 . . . . . . . . . . . . . . . . . . Piercing Weapon . | . . . . . . . . . . . . . . . . . . . . . . . . . . . . . Special Melee Weapon . | . . . . . . . . . . . . . . . . . . . . . . . . . . . . . Unidentified Prototypes 51 | . . . . . 2 . 2 . 1 2 . . . 1 5 . 4 . 1 . . 5 . . 3 . 6 19 Corrupted Parts 6 | . . . . . . . 2 . . . . . . . . 3 . . . . . . . . . . . 1 System Corruption 30 | . . . . . . . 13 . . . . . . . . 15 . . . . . . . . . . . 2 Parts Lost 74 | . . 3 . . 8 2 2 . 1 4 . 13 1 . . 2 2 . 3 . 2 . . . . 1 . 30 Power 12 | . . 1 . . . . 1 . . 2 . 1 . . . 1 1 . 2 . . . . . . . . 3 Propulsion 17 | . . 1 . . 3 1 1 . . 1 . . . . . . 1 . . . 2 . . . . . . 7 Utility 27 | . . 1 . . 5 1 . . . 1 . 7 . . . 1 . . . . . . . . . 1 . 10 Weapon 18 | . . . . . . . . . 1 . . 5 1 . . . . . 1 . . . . . . . . 10 Highest Loss Streak 8 | . . 1 . . 2 1 1 . 1 1 . 4 1 . . 1 1 . 1 . 2 . . . . 1 . 8 To Critical Strikes 4 | . . 1 . . . . 1 . . . . . . . . . . . . . . . . . . . . 2 Average Backups 14 | 2 9 12 5 20 15 12 13 13 13 20 24 23 20 21 22 23 24 24 24 25 23 21 23 22 23 23 23 9 Power . | . . . . 1 . . . . . 1 1 . . . . . . . 1 1 . . 1 . 1 1 . . Propulsion 1 | 1 2 2 . 4 . . . 1 1 . . . 2 1 1 3 4 4 4 4 2 . . . . 1 . . Utility 7 | . 2 2 2 8 10 8 7 6 7 13 14 13 13 13 13 12 11 12 12 13 12 13 14 13 13 11 11 5 Weapon 4 | 1 3 7 2 5 4 4 5 5 3 5 7 5 3 5 5 5 6 6 5 5 5 6 6 5 6 8 8 2 Tool/Special . | . . . . . . . . . . . . . . . . . . . . . . . . . . . . . Unused Backups 79 | . 1 6 28 6 10 2 1 . 1 . . 3 . . 2 1 1 . . . 1 . . 1 6 1 3 5 Power 7 | . . . 3 2 . . . . . . . 1 . . . . . . . . 1 . . . . . . . Propulsion 6 | . . 3 2 1 . . . . . . . . . . . . . . . . . . . . . . . . Utility 41 | . 1 . 15 2 8 . 1 . . . . 1 . . 1 1 . . . . . . . 1 6 1 . 3 Weapon 22 | . . 3 8 1 2 2 . . 1 . . 1 . . . . 1 . . . . . . . . . 2 1 Tool/Special 3 | . . . . . . . . . . . . . . . 1 . . . . . . . . . . . 1 1 Average Slot Usage (%) 84 | . 99 100 86 83 90 94 83 74 76 76 76 81 81 87 72 82 80 80 79 79 83 91 95 94 91 85 80 78 Engine 6 | . 14 14 14 13 10 16 11 6 8 8 11 5 . . . . . 5 6 5 5 2 . . . . . . Core 1 | . . . . . 2 . . . . 2 . 5 11 11 11 6 12 10 2 . . . . . . . . . Reactor 4 | . . . . . . . 1 6 4 . . . . . . . . . 5 10 10 12 15 13 13 12 8 10 Treads 17 | . 28 26 28 27 18 20 22 20 20 16 11 14 17 22 22 25 22 20 20 20 15 1 . . . . 1 11 Leg 4 | . . 1 . . 5 9 . . . . . . . . . . . . . . 7 29 35 31 31 27 23 1 Wheel 1 | . . . . . 3 1 . . . . . 3 . . . . . . . . . . . . . . . 5 Device 8 | . . 1 9 . 7 6 6 6 6 6 9 6 10 10 5 5 10 10 10 10 11 10 10 12 11 15 15 10 Storage 5 | . 14 14 3 13 6 6 6 6 6 5 5 5 5 5 7 5 5 5 5 5 5 5 5 3 4 4 4 1 Processor 9 | . . . . . 9 12 19 18 13 16 17 18 17 17 22 22 15 15 15 15 15 15 15 13 13 12 12 12 Protection 6 | . 13 12 2 . 7 6 6 2 6 4 6 7 5 5 2 5 5 5 4 4 4 5 5 4 3 4 4 10 Energy Cannon 2 | . . . . . . 4 6 6 2 2 3 4 10 7 . 9 6 10 8 5 5 1 4 8 6 3 5 3 Ballistic Cannon 7 | . 7 27 5 13 10 4 . . 6 8 7 5 . 2 . . 3 . 1 5 4 . 5 3 5 4 3 4 Special Weapon 1 | . . . 8 . . . . . . . . . . . . . . . . . . 4 . . . . . . Slashing Weapon 3 | . . . 12 14 1 . . . . . . . . . . . . . . . . 3 . . . . . . Peak Build Rating 260 | 6 8 17 19 22 63 69 100 100 99 121 104 113 106 104 110 111 141 135 142 144 144 151 149 168 191 208 235 260 Average Rating 99 | 5 7 12 16 19 51 63 89 94 94 112 101 99 103 102 95 106 127 134 137 142 139 138 147 164 176 205 212 183 On Entrance 102 | . 6 8 16 19 22 59 69 100 96 91 99 100 105 104 104 107 106 135 135 142 140 138 141 149 168 191 208 226 Naked Turns . | . . . . . . . . . . . . . . . . . . . . . . . . . . . . . Heaviest Build 215 | 12 34 36 50 50 101 79 72 80 104 137 137 151 155 155 142 142 162 142 147 148 148 154 151 165 187 201 215 213 Greatest Support 270 | 40 40 40 40 40 100 122 183 183 188 240 160 230 220 220 207 230 260 260 260 260 260 185 190 196 204 208 270 270 Greatest Overweight (x) 5 | . . 1 1 1 5 4 . . . . . 5 . . . . . . . . 1 . . . . . 2 4 Average Overweight (x) . | . . . . . 1 . . . . . . 1 . . . . . . . . . . . . . . . . Largest Inventory Capacity 25 | 8 15 15 25 25 25 15 15 15 20 25 25 25 25 25 25 25 25 25 25 25 25 25 25 25 25 25 25 25 Average Capacity 16 | 7 9 15 8 24 18 15 15 15 19 22 25 25 25 25 25 25 25 25 25 25 25 25 25 24 25 25 25 10 Most Carried 25 | 6 10 15 25 25 25 15 15 15 17 25 25 25 23 25 25 25 25 25 25 25 25 25 25 25 25 25 25 25 Average Carried 15 | 2 9 14 6 22 18 14 14 14 14 20 24 23 22 23 24 24 24 24 24 25 23 21 24 23 24 24 24 10 Final Capacity 25 | 8 15 15 25 25 15 15 15 15 20 25 25 25 25 25 25 25 25 25 25 25 25 25 25 25 25 25 25 5 Final Carried 25 | 6 10 15 23 25 15 15 15 15 17 25 24 22 23 25 24 25 24 25 25 25 20 25 25 25 25 25 25 5 Class Distribution -------------------- 26% | Scavenger-Mutant 16% | Derelict-Mutant 15% | Scavenger-Scrapper 13% | Mutant 9% | Cobbler-Mutant 6% | Gunner 3% | Scavenger-Gunner Dominant Class ---------------- Mutant | -10/Materials Mutant | -10/Subcaves Derelict-Mutant | -8/Recycling Cobbler-Mutant | -8/Scraptown Cobbler-Mutant | -6/Factory Scavenger-Mutant | -6/Extension Commander-Mutant | -6/Cetus Scavenger-Mutant | -6/Archives Scavenger-Mutant | -6/Hub_04(d) Scavenger-Mutant | -5/Factory Scavenger-Mutant | -5/Waste Scavenger-Mutant | -5/Factory Scavenger-Mutant | -5/Upper Caves Scavenger-Mutant | -5/Upper Caves Scavenger-Mutant | -5/Zhirov Scavenger-Mutant | -4/Proximity Caves Scavenger-Mutant | -4/Factory Scavenger-Mutant | -4/Waste Scavenger-Mutant | -4/Factory Scavenger-Mutant | -4/Upper Caves Scavenger-Mutant | -4/Upper Caves Scavenger-Mutant | -4/Warlord Scavenger-Mutant | -3/Proximity Caves Scavenger-Gunner | -3/Research Gunner | -3/Testing Gunner | -2/Research Gunner | -2/Quarantine Scavenger-Scrapper | -2/Protoforge Resources | -11 -10 -10 -8 -8 -6 -6 -6 -6 -6 -5 -5 -5 -5 -5 -5 -4 -4 -4 -4 -4 -4 -4 -3 -3 -3 -2 -2 -2 ----------- Run | Yrd Mat Sub Rec Scr Fac Ext Cet Arc Hub Fac Was Fac Upp Upp Zhi Pro Fac Was Fac Upp Upp War Pro Res Tes Res Qua Frg Matter Collected 25960 | 252 175 1143 2789 30 1846 912 79 108 156 1604 . 2161 243 196 115 214 672 . 376 91 177 316 448 385 1799 399 1140 8134 Remotely 5115 | . . . . . . . . . . 483 . 861 . . . . . . . . . . . . 628 151 425 2567 Salvage Created 30548 | 29 203 546 2410 . 1461 1273 593 210 235 2101 278 2146 253 242 177 670 1766 . 1211 173 136 . 173 79 1235 400 1478 11070 Parts 1243 | 4 13 40 55 . 43 46 19 13 9 104 2 81 7 9 1 23 87 . 51 6 13 . 4 1 58 24 51 479 Haulers Intercepted 5 | . 1 . . . . . . . . 1 . . . . . . 1 . . . . . . 1 . . . 1 Recyclers Shooed 26 | 1 . . 3 . 2 . . . 1 6 . 8 . . . . 4 . . . . . . . 1 . . . Parts Field Recycled 2 | . . . . . . . . . . . . . . 2 . . . . . . . . . . . . . . Retrieved Matter 1 | . . . . . . . . . . . . . . 1 . . . . . . . . . . . . . . Parts Self-Destructed 47 | . . 7 . . . . . . . . . . 6 7 1 6 . . . 6 8 . 6 . . . . . Prevented 33 | . . . . . . . . . . . . . . . . 19 . . . . 4 . 10 . . . . . Kills | -11 -10 -10 -8 -8 -6 -6 -6 -6 -6 -5 -5 -5 -5 -5 -5 -4 -4 -4 -4 -4 -4 -4 -3 -3 -3 -2 -2 -2 ------- Run | Yrd Mat Sub Rec Scr Fac Ext Cet Arc Hub Fac Was Fac Upp Upp Zhi Pro Fac Was Fac Upp Upp War Pro Res Tes Res Qua Frg Combat Hostiles Destroyed 492 | . 5 23 3 . 25 18 7 1 2 42 1 44 11 3 . 8 26 . 19 3 5 . 1 . 24 6 19 196 Guns 63 | . 5 . . . . . . . . . . . . . . . . . . . . . . . . . . 58 Cannons 299 | . . 17 3 . 25 17 1 1 2 31 1 28 3 3 . 2 16 . 14 3 2 . 1 . 21 5 17 86 AOE 108 | . . 6 . . . . . . . 10 . 16 8 . . . 9 . 3 . 3 . . . 3 . . 50 Classes Destroyed 35 | 1 5 4 1 . 5 . 1 . 1 2 1 . . 2 . 1 . . . . . . 1 . . . 1 9 Worker 18 | . 2 . . . 1 . . . . 5 . 1 . . . . 4 . 1 . . . . . 1 2 . 1 Builder 10 | . . . . . . . . . . 3 . 3 . . . . . . . . . . . 1 3 . . . Tunneler 2 | 1 . . . . . . . . . 1 . . . . . . . . . . . . . . . . . . Hauler 6 | . 1 . . . . . . . . 1 . . . . . . 1 . . . . . . 1 . . . 2 Recycler 45 | . . . 25 . 4 2 . . 1 3 . 4 . . . . 5 . . . . . . . . . 1 . Carrier 2 | . . . . . . . . . . . . . . . . . . . . . . . . . . . . 2 Minesweeper 1 | . . . . . . . . . . . . . . . . 1 . . . . . . . . . . . . Mechanic 8 | . 1 . . . . . . . . . . 2 . . . . . . . . . . . . . . . 5 Operator 12 | . . . . . 2 . . 4 . 1 . 1 . . . . 1 . 1 . . . . . . . 2 . Drone 12 | . . . . . . . . . . . . . . . . . . . . . . . . . . . . 12 Watcher 6 | . . . . . . . . . . 2 . 1 . . . . 1 . . . . . . . . 1 . 1 Swarmer 49 | . 3 4 . . . . . . . 5 . 9 2 . . . 8 . . . 4 . . . . . . 14 Saboteur 5 | . . . . . . . . . . . . . . . . . . . . . . . . . . . . 5 Grunt 157 | . 2 3 . . 14 12 . . 1 18 . 21 8 . . 4 3 . 11 3 . . 1 . 7 1 7 41 Brawler 11 | . . . . . . . . . . . . 1 . . . . 1 . . . . . . . 1 . . 8 Duelist 11 | . . . . . 1 . . . . 1 . . . . . . . . . . . . . . . . 1 8 Protector 10 | . . . . . . . . . . . . . . . . . . . . . . . . . . . . 10 Researcher 2 | . . . . . . . . . . . . . . 1 . . . . . . . . . . 1 . . . Sentry 30 | . . 1 3 . 4 4 . 1 . 2 . 5 1 . . 1 2 . 2 . . . . . . 1 . 3 Specialist 6 | . . . . . . . . . 1 . . . . . . . . . . . . . . . 3 . . 2 Hunter 43 | . . . . . 1 . . . . 8 . 3 . 2 . 2 4 . 2 . . . . . 7 . 2 12 Programmer 70 | . . . . . 4 1 . . . 8 . 4 . . . . 8 . 4 . . . . . 6 3 8 24 Behemoth 6 | . . . . . 1 1 . . . . . 1 . . . 1 . . . . 1 . . . . 1 . . Compactor 1 | . . . . . . . . . . . 1 . . . . . . . . . . . . . . . . . Cetus Guard 7 | . . . . . . . 7 . . . . . . . . . . . . . . . . . . . . . Hotshot 7 | . . . . . . . . . . . . . . . . . . . . . . . . . . . . 7 Decapitator 4 | . . . . . . . . . . . . . . . . . . . . . . . . . . . . 4 Striker 23 | . . . . . . . . . . . . . . . . . . . . . . . . . . . . 23 Executioner 22 | . . . . . . . . . . . . . . . . . . . . . . . . . . . . 22 Alpha 7 1 | . . . . . . . . . . . . . . . . . . . . . . . . . . . . 1 Fortress 1 | . . . . . . . . . . . . . . . . . . . . . . . . . . . 1 . Artisan 1 | . . 1 . . . . . . . . . . . . . . . . . . . . . . . . . . Cobbler 1 | . . 1 . . . . . . . . . . . . . . . . . . . . . . . . . . Subdweller 15 | . . 15 . . . . . . . . . . . . . . . . . . . . . . . . . . Elite 4 | . . . . . . . . . . . . . . . . . . . . . . . . . . . . 4 Samaritan 3 | . . . . . . . . . . . . . . . . . . . . . . . 3 . . . . . Savage 1 | . . . . . . . 1 . . . . . . . . . . . . . . . . . . . . . Mutant 1 | . . . . . . . . . . . . . . 1 . . . . . . . . . . . . . . Best Kill Streak 26 | 1 3 4 6 . 4 4 4 2 2 12 1 11 8 2 . 4 8 . 5 3 4 . 1 1 10 5 5 26 Combat Bots Only 25 | . 3 4 1 . 4 3 4 1 1 8 1 9 8 2 . 4 6 . 5 3 4 . 1 . 9 4 5 25 Max Kills in Single Turn 4 | 1 2 3 1 . 1 1 1 1 1 4 1 3 2 1 . 2 4 . 2 1 2 . 1 1 2 2 1 4 Gunslinging 1 | . 1 . . . . . . . . . . . . . . . . . . . . . . . . . . 1 Exploded 4 | . . 3 . . . . . . . 3 . 3 2 . . . 3 . 2 . 2 . . . 1 . . 4 Melee . | . . . . . . . . . . . . . . . . . . . . . . . . . . . . . Uniques/NPCs Destroyed . | . . . . . . . . . . . . . . . . . . . . . . . . . . . . . Combat | -11 -10 -10 -8 -8 -6 -6 -6 -6 -6 -5 -5 -5 -5 -5 -5 -4 -4 -4 -4 -4 -4 -4 -3 -3 -3 -2 -2 -2 -------- Run | Yrd Mat Sub Rec Scr Fac Ext Cet Arc Hub Fac Was Fac Upp Upp Zhi Pro Fac Was Fac Upp Upp War Pro Res Tes Res Qua Frg Hostile Shots Fired 3234 | . 25 82 8 . 362 132 30 4 50 257 . 361 46 43 . 52 114 . 191 18 39 . 11 4 346 71 142 846 Missed 984 | . 9 24 3 . 129 45 6 1 13 49 . 71 22 12 . 22 25 . 44 4 9 . 6 3 155 19 56 257 Deflected 7 | . . . . . . . . . . . . . . . . . . . . . . . . . . 3 4 . Hits 2250 | . 16 58 5 . 233 87 24 3 37 208 . 290 24 31 . 30 89 . 147 14 30 . 5 1 191 52 86 589 Melee 52 | . . . . . 2 . . . . . . . . . . . . . . . . . . . . . 2 48 Projectile 2198 | . 16 58 5 . 231 87 24 3 37 208 . 290 24 31 . 30 89 . 147 14 30 . 5 1 191 52 84 541 AOE 4 | . . . . . . . . . . 2 . 1 . . . . . . . . . . . . . . . 1 Critical Strikes 123 | . 1 3 . . 6 2 4 . 1 13 . 12 2 . . 2 7 . 9 2 3 . . . 8 2 8 38 Actively Blocked 34 | . . . . . . . . . . . . . . . . . . . 5 . . . . . . 2 8 19 Part Disruptions 9 | . . . . . . . . . . 2 . . . . . . . . 1 . . . . 1 . . 1 4 Damage Taken 41685 | . 177 1144 69 . 2920 1092 612 71 632 3641 . 5405 475 424 . 582 1649 144 2678 203 449 . 121 82 2588 1170 2104 13253 Core 3102 | . 8 99 14 . 200 184 44 . 72 129 . 399 36 6 . 92 103 . 57 . 74 . 13 . 176 48 173 1175 Absorbed by Shields 4289 | . . . . . 524 197 109 . . 556 . 420 . . . . . . . 74 80 . . . . . 9 2320 Reduced by Siege Mode 954 | . . . . . . . . . . 197 . 85 . 20 . . 77 . 354 19 67 . . . . . . 135 Redirected to Shielding 6 | . . . . . . . . . . . . . . . . . . . . . . . . . . . . 6 Ignored by Resistances 3115 | . . . . . 121 . . . . . . . . . . . . . 120 . 164 . . . 569 . 242 1899 Regen/Repaired (Parts) 6719 | . . . . . 74 . . . . 636 . 1546 . . . . . . . . . 276 . 252 984 445 742 1764 Core Remaining (%) 64 | 100 . . . 51 . . . . 41 . . . . . . 33 . . . . . . 78 . 86 . . . Volleys Fired 1763 | 2 45 74 83 . 102 74 31 18 14 133 22 167 12 18 3 26 80 9 58 8 17 11 15 7 95 40 87 512 Largest 3 | 2 2 2 2 . 2 2 1 1 2 2 2 2 2 2 1 2 2 2 2 2 2 1 2 3 3 2 3 3 Hottest 300 | 80 80 100 80 . 124 88 40 40 88 136 120 141 180 180 10 171 180 180 195 160 186 90 145 235 235 188 298 300 Shots Fired 2927 | 4 90 135 91 . 198 98 32 18 18 222 26 259 18 29 3 31 116 16 107 16 27 11 20 13 187 58 135 949 Gun 380 | 4 74 . . . . . . . . . . . . . . . . . . . . . . . . . . 302 Cannon 2344 | . 16 122 16 . 198 98 32 18 17 207 26 247 11 29 . 26 111 16 105 16 24 3 20 12 184 58 135 597 Launcher 104 | . . 5 . . . . . . 1 14 . 12 7 . . 5 5 . 2 . 3 . . . . . . 50 Special 99 | . . 8 75 . . . . . . 1 . . . . 3 . . . . . . 8 . 1 3 . . . Kinetic 1435 | . 16 123 16 . 179 48 . . 8 115 10 123 . 7 . . 22 . 7 6 5 . 5 3 84 19 32 607 Thermal 1326 | 4 74 8 75 . 19 50 32 18 9 92 16 124 11 22 . 13 89 16 98 10 11 3 15 9 100 21 103 284 Explosive 98 | . . 4 . . . . . . 1 14 . 12 7 . . . 5 . 2 . 3 . . . . . . 50 Electromagnetic 52 | . . . . . . . . . . . . . . . . 18 . . . . 8 . . . . 18 . 8 Robot Hit Streak 53 | 3 21 20 14 . 15 20 13 5 6 14 7 17 8 15 18 20 35 . 24 6 11 13 11 1 10 15 17 53 Robot Miss Streak 6 | . 4 3 2 . 2 4 2 2 3 2 1 3 2 1 . 1 3 . 3 1 3 1 1 3 5 2 4 6 Penetration Max 2 | . . . . . . . . . . 2 . 1 . . . . . . . . . . . . . . 1 2 Secondary Targets 11 | . 1 . . . . . . . . . . . . . . . . . . . . . . . . . . 10 Max Gunslinging Chain 2 | . 1 . . . . . . . . . . . . . . . . . . . . . . . . . . 2 Shots Hit Robots 1897 | 3 57 97 103 . 151 73 26 12 12 154 8 183 13 18 9 17 67 . 70 10 15 7 12 3 90 32 75 580 Core Hits 1081 | 2 18 39 40 . 58 28 5 6 7 98 2 100 22 9 2 11 62 . 31 6 9 . 4 3 48 10 36 425 Critical Kills 97 | . . . . . . 1 5 2 1 16 1 6 . . . . 1 . 2 . . . . . 1 . 2 59 Critical Parts Destroyed 94 | . . . . . . . . . . 22 . 9 . . . . . . . . . . . . . . . 63 Critical Strikes 284 | . 1 5 8 . 10 4 5 2 1 44 4 28 . 2 . . 4 . 2 . . . . 1 4 2 5 152 Burn 8 | . . . 8 . . . . . . . . . . . . . . . . . . . . . . . . . Meltdown 15 | . . . . . . 1 5 2 1 1 . . . . . . 1 . 2 . . . . . . . 1 1 Destroy 196 | . . . . . . . . . . 38 4 16 . . . . . . . . . . . . 1 . 1 136 Blast 65 | . 1 5 . . 10 3 . . . 5 . 12 . 2 . . 3 . . . . . . 1 3 2 3 15 Melee Attacks 73 | . . 8 36 . 12 . . . . 1 . . . . 6 . . . . . . 1 . . . . 9 . Kinetic 9 | . . . . . . . . . . . . . . . . . . . . . . . . . . . 9 . Impact 1 | . . 1 . . . . . . . . . . . . . . . . . . . . . . . . . . Slashing 63 | . . 7 36 . 12 . . . . 1 . . . . 6 . . . . . . 1 . . . . . . Piercing . | . . . . . . . . . . . . . . . . . . . . . . . . . . . . . Sneak Attacks 29 | . . 2 20 . 6 . . . . 1 . . . . . . . . . . . . . . . . . . Combat Hostiles . | . . . . . . . . . . . . . . . . . . . . . . . . . . . . . Follow-up Attacks . | . . . . . . . . . . . . . . . . . . . . . . . . . . . . . Damage Inflicted 97209 | 34 712 2219 3101 . 4831 3263 1397 630 774 6851 137 7950 2084 590 497 887 4247 . 3076 372 715 . 500 154 5015 1699 4743 40731 Guns 11470 | 34 527 . . . . . . . . . . . . . . . . . . . . . . . . . . 10909 Cannons 53941 | . 178 1596 238 . 4288 3260 1397 630 636 4531 137 5820 241 590 . 491 2432 . 2634 372 434 . 496 107 3918 1464 4157 13894 Explosions 26410 | . . 481 . . . . . . 131 2081 . 1997 1843 . . 396 1608 . 442 . 281 . . . 1045 51 200 15854 Melee 3905 | . . 142 2240 . 543 . . . . 97 . . . . 497 . . . . . . . . . . . 386 . Ramming 860 | . 7 . . . . 3 . . 7 142 . 133 . . . . 207 . . . . . 4 47 52 184 . 74 Kinetic 39228 | . 178 1713 238 . 3974 1081 . . 211 2833 137 2938 . 141 . . 614 . 218 227 32 . 126 33 2095 1107 2401 18931 Thermal 27473 | 34 527 . 623 . 314 2179 1397 630 425 1970 . 3232 241 449 . 155 1818 . 2416 145 252 . 370 74 2418 39 2142 5623 Explosive 24680 | . . 364 . . . . . . 131 1809 . 1647 1843 . . . 1608 . 442 . 281 . . . 450 51 200 15854 Electromagnetic 1449 | . . . . . . . . . . . . . . . . 732 . . . . 150 . . . . 318 . 249 Impact . | . . . . . . . . . . . . . . . . . . . . . . . . . . . . . Slashing 3519 | . . 142 2240 . 543 . . . . 97 . . . . 497 . . . . . . . . . . . . . Piercing . | . . . . . . . . . . . . . . . . . . . . . . . . . . . . . Highest Corruption 31 | . . . . . 2 2 7 7 . 8 15 20 20 16 8 31 4 14 19 19 19 19 . . 8 1 1 19 Average Corruption 12 | . . . . . 1 2 6 5 . 5 10 18 15 15 8 8 2 9 16 19 19 19 . . 6 1 1 15 Corruption Purged 41 | . . . . . 1 . . 15 . 4 8 . 5 . . . 7 . . . . . . . . . 1 . Corruption Blocked . | . . . . . . . . . . . . . . . . . . . . . . . . . . . . . Effects 855 | . . . . . 9 21 5 5 . 16 10 121 26 30 8 32 14 7 40 26 30 . . . 34 9 . 412 Message Errors 200 | . . . . . 2 2 . . . 1 2 17 7 7 1 7 1 1 10 10 8 . . . 6 1 . 117 Matter Fused 180 | . . . . . 3 12 3 2 . 4 2 30 7 5 2 14 2 2 12 1 5 . . . 9 3 . 62 Heat Flow Errors 119 | . . . . . 1 3 . 1 . 6 2 12 3 4 . 3 1 . 5 1 3 . . . 9 1 . 64 Energy Discharges 100 | . . . . . 1 1 . 1 . 2 1 19 3 4 1 3 3 2 2 2 3 . . . 1 . . 51 Parts Rejected 10 | . . . . . . . . . . . . 2 . . . . 1 1 1 . . . . . 1 . . 4 Parts Fused 19 | . . . . . . . . . . 1 . 2 . 2 1 . 1 . 1 . . . . . 1 1 . 9 Data Loss (minor) 88 | . . . . . 1 3 . . . 2 1 9 3 2 2 3 3 . 4 6 3 . . . 3 3 . 40 Data Loss (major) 51 | . . . . . 1 . 1 1 . . 1 9 1 1 . . . . . . 2 . . . 1 . . 33 Misfires 21 | . . . . . . . 1 . . . . 4 1 . . 1 1 1 2 3 4 . . . 1 . . 2 Alerts 21 | . . . . . . . . . . . . 2 1 . 1 1 1 . 1 . . . . . 1 . . 13 Misdirections 4 | . . . . . . . . . . . . 2 . 1 . . . . . . . . . . . . . 1 Weapon Failures 42 | . . . . . . . . . . . 1 13 . 4 . . . . 2 3 2 . . . 1 . . 16 Overload Shots 10 | . . . . . . . . . . . . . . . . . . . . . . . . . . . . 10 Overflow Damage 3590 | . 9 57 482 . 145 66 . 13 49 182 . 236 114 18 62 1 131 . 65 . . . 43 . 190 266 390 1071 Projectiles 1770 | . 9 . 6 . 56 66 . 13 49 67 . 101 26 18 . . 85 . 50 . . . 43 . 156 238 387 400 Explosions 1057 | . . . . . . . . . . 82 . 124 88 . . 1 43 . 15 . . . . . 30 . 3 671 Melee 763 | . . 57 476 . 89 . . . . 33 . 11 . . 62 . 3 . . . . . . . 4 28 . . Knockbacks 214 | . 3 7 . . 30 17 . . 2 32 . 22 . . . . 1 . 3 . . . 1 . 16 5 8 67 Impact 5 | . . . . . . . . . . 1 . 1 . . . . . . . . . . . . . 3 . . Kinetic 190 | . 3 7 . . 28 15 . . 2 23 . 20 . . . . 1 . 3 . . . 1 . 16 2 8 61 Secondary 19 | . . . . . 2 2 . . . 8 . 1 . . . . . . . . . . . . . . . 6 Self-Inflicted Damage 1306 | . . 55 . . 49 . . . . 75 . 291 . . . . 66 . . . . . . . 52 110 50 558 Shots 28 | . . 3 . . 1 . . . . 2 . 6 . . . . 3 . . . . . . . 1 1 1 10 Rammed 36 | . 6 . . . . 1 . . 1 7 . 8 . . . . 10 . . . . . . . . . . 3 Targets Rammed 50 | . 6 . . . . 1 . . 1 7 . 9 . . . . 12 . . . . . 1 3 3 4 . 3 Kicked 11 | . . . . . . . . . . . . . . . . . . . . . . . 1 3 3 4 . . Crushed 3 | . . . . . . . . . . . . 1 . . . . 2 . . . . . . . . . . . Highest Temperature 433 | 36 141 5 176 . 433 294 15 195 36 390 235 386 147 219 . 195 192 60 246 189 321 . . 183 365 252 315 244 Average Temperature 72 | 20 51 5 43 . 91 126 5 52 13 83 42 90 66 80 . 71 59 33 60 43 83 . . 75 89 77 58 66 Received Heat Transfer 5478 | . 90 291 27 . 707 383 40 . 141 530 . 1184 163 . . 51 48 . 453 27 306 . 9 . 118 144 207 559 Effects 15 | . . . . . 3 4 . . . 1 . 3 . . . . . . . . . . . . 1 . 2 1 Shutdowns 5 | . . . . . 1 . . . . 1 . 2 . . . . . . . . . . . . . . 1 . Energy Bleed 5 | . . . . . 1 1 . . . . . 1 . . . . . . . . . . . . . . 1 1 Interference 4 | . . . . . . 3 . . . . . . . . . . . . . . . . . . 1 . . . Matter Decay 1 | . . . . . 1 . . . . . . . . . . . . . . . . . . . . . . . Siege Activations 36 | . . . . . . . . . . 7 . 5 . 1 . 2 4 . 4 1 1 . . . . . . 11 Total Turns 824 | . . . . . . . . . . 182 . 102 . 20 . 12 47 . 90 21 24 . . . . . . 326 Longest Duration 57 | . . . . . . . . . . 57 . 28 . 20 . 8 19 . 40 21 24 . . . . . . 49 Martial Activations . | . . . . . . . . . . . . . . . . . . . . . . . . . . . . . Shielding Activations 6 | . . . . . . . . . . . . . . . . . . . . . . . . . . 1 5 . Total Turns 89 | . . . . . . . . . . . . . . . . . . . . . . . . . . 33 56 . Longest Duration 33 | . . . . . . . . . . . . . . . . . . . . . . . . . . 33 26 . Robots Disrupted 2 | . . . 2 . . . . . . . . . . . . . . . . . . . . . . . . . Combat Hostiles . | . . . . . . . . . . . . . . . . . . . . . . . . . . . . . Robots Corrupted 12 | . . . . . . . . . . 1 . . . . . 6 1 . . . . . 1 . . 2 . 1 Combat Hostiles 8 | . . . . . . . . . . . . . . . . 6 . . . . . . . . . 1 . 1 Parts Fried 19 | . . . . . . . 3 . . 2 . 1 . . . 7 2 . . . . . 3 . . 1 . . Impact Corruptions 7 | . . . . . . . . . . 2 . 1 . . . . 1 . . . . . 1 . 1 1 . . Robots Melted 17 | . . . 2 . . 1 5 2 1 1 . . . . . . 1 . 2 . . . . . . . 1 1 Combat Hostiles 12 | . . . . . . 1 5 . . 1 . . . . . . 1 . 2 . . . . . . . 1 1 Parts Melted 47 | . 2 . 5 . . 3 7 2 1 2 . 5 . . . . 3 . 5 . 1 . . . 1 . 5 5 Heat Transferred 23899 | 75 1200 . 5840 . 407 . . . . 2124 . 2470 200 200 . . 1850 . 2442 148 259 . . . 350 37 1702 4595 Parts Sabotaged . | . . . . . . . . . . . . . . . . . . . . . . . . . . . . . Parts Stolen . | . . . . . . . . . . . . . . . . . . . . . . . . . . . . . Parts Stripped 18 | . . . . . . . . . . . . . . . . . . . . . . . . . . . 18 . Power Chain Reactions 3 | . . . . . . . . . . . . 1 . . . . . . . . . . . . 2 . . . Alert | -11 -10 -10 -8 -8 -6 -6 -6 -6 -6 -5 -5 -5 -5 -5 -5 -4 -4 -4 -4 -4 -4 -4 -3 -3 -3 -2 -2 -2 ------- Run | Yrd Mat Sub Rec Scr Fac Ext Cet Arc Hub Fac Was Fac Upp Upp Zhi Pro Fac Was Fac Upp Upp War Pro Res Tes Res Qua Frg Maximum Alert Level 5 | . . . . . 1 1 1 1 4 5 2 4 . . . . 2 1 1 . . . . . 1 . 1 5 Low Security (%) 50 | 100 100 . 100 . 86 89 60 74 19 . . 4 . . . . 23 90 47 . . . . 100 83 100 75 2 Level 1 10 | . . . . . 13 10 39 25 6 . . 35 . . . . 54 9 52 . . . . . 16 . 24 5 Level 2 4 | . . . . . . . . . 30 21 100 15 . . . . 21 . . . . . . . . . . . Level 3 6 | . . . . . . . . . 13 25 . 29 . . . . . . . . . . . . . . . 11 Level 4 4 | . . . . . . . . . 30 48 . 15 . . . . . . . . . . . . . . . 1 Level 5 23 | . . . . . . . . . . 4 . . . . . . . . . . . . . . . . . 78 High Security . | . . . . . . . . . . . . . . . . . . . . . . . . . . . . . Max Security . | . . . . . . . . . . . . . . . . . . . . . . . . . . . . . Peak Influence 4479 | 5 60 . 119 . 337 387 258 241 1591 1706 597 1454 . . . . 599 206 295 . . . . 74 324 167 372 4479 Initial 775 | . . . 7 . . 158 210 79 18 775 597 347 . . . . . 206 81 . . . . . . 140 . 36 Average 1158 | . 12 . 39 . 96 98 198 146 712 1015 546 615 . . . . 278 165 173 . . . . 13 103 74 102 3377 Influence Increases 19829 | 5 167 245 299 . 965 984 348 248 1883 2267 10 1893 240 55 10 210 1040 10 555 70 120 . 200 229 1103 285 790 5598 Destroy 0b10 Robot/C 10480 | . 100 160 60 . 540 500 160 80 680 1000 . 1020 220 40 . 160 520 . 380 60 100 . 120 60 500 120 380 3520 Destroy 0b10 Robot/NC 755 | 5 20 . 165 . 35 15 10 20 20 100 . 65 . 5 10 5 60 . 10 . . . . 10 20 15 15 150 Destroy Leader 1892 | . 22 10 . . 150 62 . . 160 226 . 202 20 10 . 30 114 . 70 10 20 . 10 12 60 32 60 612 Allied During Kill 1711 | . . . . . . 310 159 100 860 172 . 29 . . . . . . . . . . 55 26 . . . . Successful Hack 588 | . 10 . 13 . 40 51 . . 3 84 . 72 . . . . 46 . . . . . . 83 91 7 56 32 Select Force Hacks 70 | . . . . . 20 . . . 50 . . . . . . . . . . . . . . . . . . . Disable Machine 1260 | . . . 60 . 60 15 15 45 45 300 . 150 . . . . 120 . 15 . . . . 30 135 15 120 135 Anti-Garrison Action 150 | . . . . . . . . . . . . . . . . . . . . . . . . . . . . 150 Destroy Structure 2263 | . . . 1 . 45 16 4 3 65 340 10 310 . . . . 180 10 80 . . . . 8 252 96 159 684 Partial Spotted 15 | . . . . . . . . . . . . 15 . . . . . . . . . . . . . . . . Lose Combat Pursuer 645 | . 15 75 . . 75 15 . . . 45 . 30 . . . 15 . . . . . . 15 . 45 . . 315 Influence Decreases 15350 | 5 167 230 195 119 642 931 526 393 353 2144 1219 940 825 443 487 210 449 485 457 246 158 . 200 229 853 534 725 1185 Entered New Map 4507 | . . . 8 119 . 165 166 119 35 808 1109 150 537 165 477 . . 385 35 80 8 . . . . 110 1 30 Time Decay 7765 | 5 167 220 187 . 409 414 160 254 268 616 110 640 278 278 10 200 429 100 392 166 130 . 160 189 450 404 424 705 Lost Part 699 | . . 10 . . 69 20 20 . 10 40 . 130 10 . . 10 20 . 30 . 20 . . . . 10 . 300 Lost Ally 560 | . . . . . 60 60 180 20 40 80 . 20 . . . . . . . . . . 40 40 10 10 . . Purge Threat 1819 | . . . . . 104 272 . . . 600 . . . . . . . . . . . . . . 393 . 300 150 Squads Dispatched 118 | . 2 . . . 14 4 . . 11 22 . 14 . . . . 8 . 5 . . . . 9 4 5 5 15 Investigation 46 | . 1 . . . 9 2 . . 4 8 . 7 . . . . 3 . 2 . . . . 4 1 1 . 4 Extermination 31 | . . . . . 4 . . . 1 4 . 3 . . . . 3 . 2 . . . . . 2 3 4 5 Reinforcement 33 | . 1 . . . 1 2 . . 6 7 . 2 . . . . 2 . 1 . . . . 5 1 1 1 3 Assault 7 | . . . . . . . . . . 2 . 2 . . . . . . . . . . . . . . . 3 Garrison 1 | . . . . . . . . . . 1 . . . . . . . . . . . . . . . . . . Intercept . | . . . . . . . . . . . . . . . . . . . . . . . . . . . . . Searches Triggered . | . . . . . . . . . . . . . . . . . . . . . . . . . . . . . Construction Impeded 7 | . . . . . . 1 . . . 4 . 2 . . . . . . . . . . . . . . . . Haulers Reinforced 4 | . . . . . . . . . 1 1 . . . . . . 1 . . . . . . 1 . . . . Active Scanning Responses . | . . . . . . . . . . . . . . . . . . . . . . . . . . . . . Cargo Convoy Interrupts . | . . . . . . . . . . . . . . . . . . . . . . . . . . . . . Stealth | -11 -10 -10 -8 -8 -6 -6 -6 -6 -6 -5 -5 -5 -5 -5 -5 -4 -4 -4 -4 -4 -4 -4 -3 -3 -3 -2 -2 -2 --------- Run | Yrd Mat Sub Rec Scr Fac Ext Cet Arc Hub Fac Was Fac Upp Upp Zhi Pro Fac Was Fac Upp Upp War Pro Res Tes Res Qua Frg Distress Signals 49 | . 2 . . . 1 2 3 . 2 4 . 1 . . . . 2 . 1 . . . . 2 3 . 3 23 Communications Jammed 83 | . . . . . . . . . . . . . . . . . . . . . . . . 1 10 . 26 46 Distress Signals 81 | . . . . . . . . . . . . . . . . . . . . . . . . 1 10 . 24 46 Times Spotted 879 | . 14 29 3 . 42 29 11 10 24 64 5 65 11 3 . 9 33 5 32 3 4 . 6 6 33 8 27 403 Peak Tracking Total 14 | . 4 6 1 . 5 4 5 1 5 7 4 8 8 2 . 3 5 6 6 3 3 . 2 2 10 3 5 14 Tactical Retreats 33 | . 1 5 . . 5 1 . . . 2 1 2 . . . 1 . 1 . . . . 1 . 1 . . 12 Traps | -11 -10 -10 -8 -8 -6 -6 -6 -6 -6 -5 -5 -5 -5 -5 -5 -4 -4 -4 -4 -4 -4 -4 -3 -3 -3 -2 -2 -2 ------- Run | Yrd Mat Sub Rec Scr Fac Ext Cet Arc Hub Fac Was Fac Upp Upp Zhi Pro Fac Was Fac Upp Upp War Pro Res Tes Res Qua Frg Traps Triggered 20 | . 1 . . . 1 . . . 1 2 . 3 . . . . 3 . . . . . . 1 . 4 . 4 Indirectly . | . . . . . . . . . . . . . . . . . . . . . . . . . . . . . Trap Hack Attempts . | . . . . . . . . . . . . . . . . . . . . . . . . . . . . . Triggered . | . . . . . . . . . . . . . . . . . . . . . . . . . . . . . Disarmed . | . . . . . . . . . . . . . . . . . . . . . . . . . . . . . Reprogrammed . | . . . . . . . . . . . . . . . . . . . . . . . . . . . . . Reused 4 | . . 1 . . . . . . . . . . . . . 3 . . . . . . . . . . . . Traps Extracted . | . . . . . . . . . . . . . . . . . . . . . . . . . . . . . Installed 4 | . . 1 . . . . . . . . . . . . . 3 . . . . . . . . . . . . Triggered 3 | . . . . . . . . . . . . . . . . 3 . . . . . . . . . . . . Most Traps Carried 1 | . . 1 . . . . . . . . . . . . . 1 . . . . . . . . . . . . Machines | -11 -10 -10 -8 -8 -6 -6 -6 -6 -6 -5 -5 -5 -5 -5 -5 -4 -4 -4 -4 -4 -4 -4 -3 -3 -3 -2 -2 -2 ---------- Run | Yrd Mat Sub Rec Scr Fac Ext Cet Arc Hub Fac Was Fac Upp Upp Zhi Pro Fac Was Fac Upp Upp War Pro Res Tes Res Qua Frg Machines Disabled 93 | . . 1 4 . 4 2 1 3 3 20 . 10 . 1 . . 8 . 1 . . 1 . 2 9 1 8 14 Max in Single Turn 3 | . . 1 1 . 2 1 1 1 . 3 . 1 . 1 . . 2 . 1 . . 1 . 1 2 1 1 3 Garrison Access 6 | . . . . . 1 . . . . . . 2 . . . . . . . . . . . . 1 1 . 1 Network Hub 2 | . . . . . . . . . 2 . . . . . . . . . . . . . . . . . . . Machines Repaired . | . . . . . . . . . . . . . . . . . . . . . . . . . . . . . Machines Dismantled . | . . . . . . . . . . . . . . . . . . . . . . . . . . . . . Machines Sabotaged 1 | . . . . . . . . . 1 . . . . . . . . . . . . . . . . . . . Overloaded Fab Kills . | . . . . . . . . . . . . . . . . . . . . . . . . . . . . . Hacking | -11 -10 -10 -8 -8 -6 -6 -6 -6 -6 -5 -5 -5 -5 -5 -5 -4 -4 -4 -4 -4 -4 -4 -3 -3 -3 -2 -2 -2 --------- Run | Yrd Mat Sub Rec Scr Fac Ext Cet Arc Hub Fac Was Fac Upp Upp Zhi Pro Fac Was Fac Upp Upp War Pro Res Tes Res Qua Frg Machines Accessed 148 | . 2 2 11 3 24 13 1 . 4 15 . 11 . . 4 . 6 . 2 1 . 1 . 7 10 5 10 16 Terminals 67 | . 1 . 6 . 10 12 1 . 4 4 . 1 . . . . 2 . . . . . . 3 6 1 7 9 Fabricators 16 | . . . . . 4 . . . . 1 . 1 . . . . 1 . . . . . . 1 2 2 . 4 Repair Stations 13 | . 1 . . . 3 . . . . 3 . 2 . . . . . . . . . . . 1 1 . 1 1 Recycling Units 33 | . . . 5 . 6 1 . . . 6 . 5 . . . . 3 . 2 . . . . 2 . 1 . 2 Scanalyzers 2 | . . . . . . . . . . 1 . . . . . . . . . . . . . . . . 1 . Garrison Access 6 | . . . . . 1 . . . . . . 2 . . . . . . . . . . . . 1 1 1 . Total Hacks 512 | . 7 12 47 24 62 36 1 . 6 68 . 40 . . 17 . 22 . 5 1 . 1 . 24 40 25 29 45 Successful 251 | . 4 12 33 24 36 14 . . 4 24 . 18 . . 17 . 8 . 2 1 . 1 . 15 16 7 8 7 Failed 260 | . 3 . 14 . 26 21 1 . 2 44 . 22 . . . . 14 . 3 . . . . 9 24 18 21 38 Catastrophic 84 | . 1 . . . 4 4 1 . 2 20 . 6 . . . . 3 . 1 . . . . 2 6 6 10 18 Database Lockouts 1 | . . . . . . 1 . . . . . . . . . . . . . . . . . . . . . . Manual 229 | . 3 . 21 . 34 14 1 . 6 25 . 22 . . . . 17 . 5 . . . . 14 16 12 10 29 Terminals 224 | . 4 . 15 . 30 34 1 . 6 28 . 9 . . . . 5 . . . . . . 12 24 6 23 27 Fabricators 58 | . . . . . 8 . . . . 4 . 7 . . . . 6 . . . . . . 3 8 14 . 8 Repair Stations 53 | . 3 . . . 12 . . . . 14 . 9 . . . . . . . . . . . 5 7 . 2 1 Recycling Units 105 | . . . 32 . 9 2 . . . 16 . 13 . . . . 11 . 5 . . . . 4 . 4 . 9 Scanalyzers 8 | . . . . . . . . . . 6 . . . . . . . . . . . . . . . . 2 . Garrison Access 9 | . . . . . 3 . . . . . . 2 . . . . . . . . . . . . 1 1 2 . Terminal Hacks 107 | . 3 12 1 24 10 11 . . . 5 . 1 . . 17 . . . . 1 . 1 . 1 9 1 7 3 Record 40 | . . 11 . 23 1 . . . . . . . . . 5 . . . . . . . . . . . . . Part Schematic 4 | . . . . . . . . . . . . . . . 4 . . . . . . . . . . . . . Robot Schematic 1 | . . . . . 1 . . . . . . . . . . . . . . . . . . . . . . . Robot Analysis 11 | . 2 . . . 3 1 . . . . . . . . 4 . . . . . . . . . 1 . . . Prototype ID Bank 8 | . . . . . 1 . . . . . . . . . 4 . . . . . . . . . 2 . 1 . Open Door 8 | . . . . . 1 4 . . . . . . . . . . . . . 1 . 1 . . 1 . . . Branch Access Points 3 | . . . . . 1 . . . . . . 1 . . . . . . . . . . . 1 . . . . Terminal Index 1 | . . . 1 . . . . . . . . . . . . . . . . . . . . . . . . . Unreport Threat 15 | . . . . . 2 3 . . . 4 . . . . . . . . . . . . . . 3 . 2 1 Locate Traps 7 | . 1 . . . . 1 . . . . . . . . . . . . . . . . . . 1 . 3 1 Recall Extermination 1 | . . . . . . . . . . . . . . . . . . . . . . . . . . 1 . . Zone Layout 6 | . . . . . . 2 . . . 1 . . . . . . . . . . . . . . 1 . 1 1 Proto ID Catalog 2 | . . 1 . 1 . . . . . . . . . . . . . . . . . . . . . . . . Fabricator Hacks 11 | . . . . . 1 . . . . 2 . 2 . . . . 1 . . . . . . 1 2 2 . . Network Status 4 | . . . . . 1 . . . . . . . . . . . 1 . . . . . . 1 . 1 . . Load Schematic 3 | . . . . . . . . . . 1 . 1 . . . . . . . . . . . . 1 . . . Build 4 | . . . . . . . . . . 1 . 1 . . . . . . . . . . . . 1 1 . . Repair Station Hacks 27 | . 1 . . . 8 . . . . 6 . 5 . . . . . . . . . . . 5 2 . . . Scan Component 16 | . . . . . 5 . . . . 4 . 3 . . . . . . . . . . . 3 1 . . . Repair 10 | . . . . . 3 . . . . 2 . 2 . . . . . . . . . . . 2 1 . . . Refit 1 | . 1 . . . . . . . . . . . . . . . . . . . . . . . . . . . Recycling Unit Hacks 27 | . . . 21 . 2 . . . . 2 . 1 . . . . 1 . . . . . . . . . . . Recycle Component 5 | . . . 5 . . . . . . . . . . . . . . . . . . . . . . . . . Process 6 | . . . 6 . . . . . . . . . . . . . . . . . . . . . . . . . Report Inventory 5 | . . . 5 . . . . . . . . . . . . . . . . . . . . . . . . . Retrieve Matter 5 | . . . 5 . . . . . . . . . . . . . . . . . . . . . . . . . Retrieve Components 6 | . . . . . 2 . . . . 2 . 1 . . . . 1 . . . . . . . . . . . Scanalyzer 3 | . . . . . . . . . . 3 . . . . . . . . . . . . . . . . . . Insert Component 2 | . . . . . . . . . . 2 . . . . . . . . . . . . . . . . . . Analyze 1 | . . . . . . . . . . 1 . . . . . . . . . . . . . . . . . . Garrison Access Hacks 5 | . . . . . 1 . . . . . . 2 . . . . . . . . . . . . 1 1 . . Seal Access 5 | . . . . . 1 . . . . . . 2 . . . . . . . . . . . . 1 1 . . Unauthorized Hacks 71 | . . . 11 . 14 3 . . 4 6 . 7 . . . . 6 . 2 . . . . 8 2 3 1 4 Terminals 27 | . . . 6 . 4 2 . . 4 1 . . . . . . 1 . . . . . . 4 1 . 1 3 Track 9 | . . . . . 2 1 . . 1 . . . . . . . . . . . . . . 1 1 . 1 2 Assimilate 2 | . . . . . . . . . . . . . . . . . . . . . . . . 1 . . . 1 Botnet 5 | . . . 1 . 1 1 . . . . . . . . . . 1 . . . . . . 1 . . . . Disrupt 1 | . . . . . . . . . . 1 . . . . . . . . . . . . . . . . . . Operators 2 | . . . . . 1 . . . . . . . . . . . . . . . . . . 1 . . . . Skim 5 | . . . 5 . . . . . . . . . . . . . . . . . . . . . . . . . Sabotage 3 | . . . . . . . . . 3 . . . . . . . . . . . . . . . . . . . Fabricators 11 | . . . . . 4 . . . . . . 1 . . . . 2 . . . . . . 1 1 2 . . Prioritize 3 | . . . . . 1 . . . . . . 1 . . . . . . . . . . . . . 1 . . Liberate 5 | . . . . . 2 . . . . . . . . . . . 1 . . . . . . 1 1 . . . Haulers 2 | . . . . . . . . . . . . . . . . . 1 . . . . . . . . 1 . . Download 1 | . . . . . 1 . . . . . . . . . . . . . . . . . . . . . . . Repair Stations 1 | . . . . . . . . . . . . 1 . . . . . . . . . . . . . . . . Patch 1 | . . . . . . . . . . . . 1 . . . . . . . . . . . . . . . . Recycling Units 32 | . . . 5 . 6 1 . . . 5 . 5 . . . . 3 . 2 . . . . 3 . 1 . 1 Reject 3 | . . . 3 . . . . . . . . . . . . . . . . . . . . . . . . . Mask 3 | . . . 2 . . . . . . . . . . . . . . . . . . . . 1 . . . . Fedlink 25 | . . . . . 6 1 . . . 5 . 4 . . . . 3 . 2 . . . . 2 . 1 . 1 Scraphulk 1 | . . . . . . . . . . . . 1 . . . . . . . . . . . . . . . . Scanalyzers . | . . . . . . . . . . . . . . . . . . . . . . . . . . . . . Garrison Access . | . . . . . . . . . . . . . . . . . . . . . . . . . . . . . Data Cores Recovered 2 | . . . . . 1 . . . . . . . . . . . . . . . . . . . . . 1 . Used 1 | . . . . . 1 . . . . . . . . . . . . . . . . . . . . . . . Hacking Detections 97 | . 2 . 10 . 15 8 1 . 1 9 . 4 . . . . 4 . 1 . . . . 5 8 4 9 16 Full Trace Events 11 | . 1 . 1 . 2 1 . . . 3 . 1 . . . . . . . . . . . . 1 . . 1 Feedback Events 1 | . . . . . 1 . . . . . . . . . . . . . . . . . . . . . . . Corruption 1 | . . . . . 1 . . . . . . . . . . . . . . . . . . . . . . . Feedback Blocked . | . . . . . . . . . . . . . . . . . . . . . . . . . . . . . Robot Schematics Acquired 1 | . . . . . 1 . . . . . . . . . . . . . . . . . . . . . . . Robots Built 1 | . . . . . . . . . . . . . . . . . . . . . . . . . . 1 . . Authchips . | . . . . . . . . . . . . . . . . . . . . . . . . . . . . . Time 187 | . . . . . . . . . . . . . . . . . . . . . . . . . . 187 . . Total Robot Build Rating 7 | . . . . . . . . . . . . . . . . . . . . . . . . . . 7 . . Part Schematics Acquired 10 | . . . . . 1 . . . . 1 . . . . 4 . . . . . . . . . 4 . . . Parts Built 1 | . . . . . . . . . . . . . . . . . . . . . . . . . 1 . . . Authchips . | . . . . . . . . . . . . . . . . . . . . . . . . . . . . . Time 266 | . . . . . . . . . . 102 . 102 . . . . . . . . . . . . 62 . . . Total Part Build Rating 7 | . . . . . . . . . . . . . . . . . . . . . . . . . 7 . . . Parts Repaired 9 | . . . . . 2 . . . . 2 . 2 . . . . . . . . . . . 2 1 . . . Time 518 | . . . . . 114 . . . . 118 . 144 . . . . . . . . . . . 88 54 . . . Parts Recycled 5 | . . . 5 . . . . . . . . . . . . . . . . . . . . . . . . . Recycled Matter 578 | . . . 578 . . . . . . . . . . . . . . . . . . . . . . . . . Retrieved Matter 518 | . . . 518 . . . . . . . . . . . . . . . . . . . . . . . . . Retrieved Components 14 | . . . . . 11 . . . . 2 . . . . . . 1 . . . . . . . . . . . Parts Scanalyzed 2 | . . . . . . . . . . 2 . . . . . . . . . . . . . . . . . . Part Schematics Acquired 1 | . . . . . . . . . . 1 . . . . . . . . . . . . . . . . . . Parts Damaged 1 | . . . . . . . . . . 1 . . . . . . . . . . . . . . . . . . Bothacking | -11 -10 -10 -8 -8 -6 -6 -6 -6 -6 -5 -5 -5 -5 -5 -5 -4 -4 -4 -4 -4 -4 -4 -3 -3 -3 -2 -2 -2 ------------ Run | Yrd Mat Sub Rec Scr Fac Ext Cet Arc Hub Fac Was Fac Upp Upp Zhi Pro Fac Was Fac Upp Upp War Pro Res Tes Res Qua Frg Used RIF Installer . | . . . . . . . . . . . . . . . . . . . . . . . . . . . . . Robots Hacked 7 | . . . . . . . . . . 1 . . . . 3 . . . . . . . . 1 2 . . . Non-combat 2 | . . . . . . . . . . 1 . . . . . . . . . . . . . 1 . . . . Combat 3 | . . . . . . . . . . . . . . . 3 . . . . . . . . . . . . . Robot Hacks Applied 5 | . . . . . . . . . . 1 . . . . 3 . . . . . . . . 1 . . . . parse_system 3 | . . . . . . . . . . . . . . . 3 . . . . . . . . . . . . . find_chute 1 | . . . . . . . . . . 1 . . . . . . . . . . . . . . . . . . find_recycling 1 | . . . . . . . . . . . . . . . . . . . . . . . . 1 . . . . Manual 2 | . . . . . . . . . . . . . . . . . . . . . . . . . 2 . . . Relay Couplers Released 7 | . . . . . . . . . . 4 . 1 . . . . . . . . . . . . . . . 2 Machine Destruction 3 | . . . . . . . . . . . . 1 . . . . . . . . . . . . . . . 2 Programmers 4 | . . . . . . . . . . 4 . . . . . . . . . . . . . . . . . . Fabnet Peak Effective % . | . . . . . . . . . . . . . . . . . . . . . . . . . . . . . Robots Rewired 19 | . . . 2 . . 12 . . . . . . . . . . . . . . . 5 . . . . . . Allies Hacked 1 | . . . . . . . . . . . . . . . . . . . . . . . . . 1 . . . Hacks Repelled . | . . . . . . . . . . . . . . . . . . . . . . . . . . . . . Allies | -11 -10 -10 -8 -8 -6 -6 -6 -6 -6 -5 -5 -5 -5 -5 -5 -4 -4 -4 -4 -4 -4 -4 -3 -3 -3 -2 -2 -2 -------- Run | Yrd Mat Sub Rec Scr Fac Ext Cet Arc Hub Fac Was Fac Upp Upp Zhi Pro Fac Was Fac Upp Upp War Pro Res Tes Res Qua Frg Total Allies 37 | . . . 2 . 3 19 5 . . . . 1 . . . . . . . . . 5 . 1 . 1 . . Largest Group 16 | . . . 2 1 3 16 16 10 7 5 . 1 . . . . . . . . . 5 5 4 1 1 . . Highest-Rated Group 731 | . . . 16 9 60 575 731 731 527 412 . 123 . . . . . . . . . 253 253 191 40 93 . . Highest-Rated Ally 159 | . . . 8 9 20 159 159 153 96 96 . 123 . . . . . . . . . 56 56 56 40 93 . . Total Orders 10 | . . . 2 3 2 . . . . 1 . . . . . . . . . . . . . . 2 . . . STAY 5 | . . . 1 1 1 . . . . 1 . . . . . . . . . . . . . . 1 . . . FOLLOW 3 | . . . 1 1 . . . . . . . . . . . . . . . . . . . . 1 . . . DROP 1 | . . . . . 1 . . . . . . . . . . . . . . . . . . . . . . . PICKUP 1 | . . . . 1 . . . . . . . . . . . . . . . . . . . . . . . . Ally Attacks 420 | . . . . . 17 93 44 18 106 51 . 26 . . . . . . . . . . 40 25 . . . . Total Damage 13856 | . . . . . 202 1930 954 641 5251 2145 . 889 . . . . . . . . . . 904 883 . 57 . . Kills 81 | . . . . . 2 8 4 4 35 12 . 8 . . . . . . . . . . 5 3 . . . . Allies Corrupted 1 | . . . . . . . . . . 1 . . . . . . . . . . . . . . . . . . Allies Melted 8 | . . . . . . . . . 1 . . . . . . . . . . . . . . . . . . 7 Intel | -11 -10 -10 -8 -8 -6 -6 -6 -6 -6 -5 -5 -5 -5 -5 -5 -4 -4 -4 -4 -4 -4 -4 -3 -3 -3 -2 -2 -2 ------- Run | Yrd Mat Sub Rec Scr Fac Ext Cet Arc Hub Fac Was Fac Upp Upp Zhi Pro Fac Was Fac Upp Upp War Pro Res Tes Res Qua Frg Active Infowar (turns) 24656 | . . 343 . . 83 . . . . 2052 234 1941 26 . . . 941 101 516 472 478 744 689 842 1237 965 1386 11606 Optics 13670 | . . . . . . . . . . 2052 234 1940 26 . . . . . . . . 2 . . . . . 9416 Sensors 8543 | . . . . . 83 . . . . 723 . . . . . . 692 101 86 450 466 744 594 447 1022 773 1015 1347 Terrain 2 | . . . . . . . . . . . . . . . . . . . . . . . . . . 2 . . Structural 1336 | . . . . . . . . . . 189 . 1 . . . . . . . . 12 . . . 86 40 40 968 Seismic 343 | . . 343 . . . . . . . . . . . . . . . . . . . . . . . . . . Machine Analysis 66 | . . . . . . . . . . . . 65 . . . . . . . . . . 1 . . . . . Jamming 6660 | . . . . . . . . . . . . . . . . . 380 . 430 22 . . 95 842 562 964 1385 1980 Robot Analysis Total 11 | . 2 . . . 3 1 . . . . . . . . 4 . . . . . . . . . 1 . . . Derelict Logs Recovered 12 | . . 2 . 5 . . . . . . . . 1 2 . 1 . . . . 1 . . . . . . . Drone Launches . | . . . . . . . . . . . . . . . . . . . . . . . . . . . . . Drone Recoveries . | . . . . . . . . . . . . . . . . . . . . . . . . . . . . . Exploration | -11 -10 -10 -8 -8 -6 -6 -6 -6 -6 -5 -5 -5 -5 -5 -5 -4 -4 -4 -4 -4 -4 -4 -3 -3 -3 -2 -2 -2 ------------- Run | Yrd Mat Sub Rec Scr Fac Ext Cet Arc Hub Fac Was Fac Upp Upp Zhi Pro Fac Was Fac Upp Upp War Pro Res Tes Res Qua Frg Turns Passed 52599 | 142 829 3736 8937 3658 3016 1603 331 546 588 2055 234 2294 615 602 277 877 1488 204 929 579 654 781 691 904 1486 965 1591 11987 Spaces Moved 21224 | 79 381 1740 3089 1539 1326 736 152 101 274 844 112 980 359 318 146 471 692 102 397 294 309 512 485 609 846 625 786 2920 Core 552 | 5 . . . 166 . . . . . . . . . . . . . . . . . . . . . . . 381 Treads 13818 | 74 381 1740 3089 1316 393 386 152 101 274 844 112 655 359 318 146 471 692 102 397 294 206 . . . . . 89 1227 Legs 4480 | . . . . . 307 244 . . . . . . . . . . . . . . 103 512 485 609 846 625 697 52 Wheels 2374 | . . . . 57 626 106 . . . . . 325 . . . . . . . . . . . . . . . 1260 Hover . | . . . . . . . . . . . . . . . . . . . . . . . . . . . . . Flight . | . . . . . . . . . . . . . . . . . . . . . . . . . . . . . Fastest Speed 50 | 50 160 160 160 50 120 130 160 160 160 160 160 150 160 160 162 162 162 160 160 165 124 115 115 114 114 117 112 50 Average Speed 155 | 153 160 166 168 232 180 165 160 160 160 160 160 162 160 161 162 162 164 161 164 165 177 121 115 114 115 118 124 116 Slowest Speed 260 | 160 160 240 260 260 260 190 160 160 160 160 160 240 160 162 162 162 167 165 166 166 240 124 118 115 117 120 249 240 Overloaded Moves . | . . . . . . . . . . . . . . . . . . . . . . . . . . . . . Propulsion Burnouts . | . . . . . . . . . . . . . . . . . . . . . . . . . . . . . Robots Hopped . | . . . . . . . . . . . . . . . . . . . . . . . . . . . . . Potential Cave-ins 28 | . . . . . . . . . . . 9 . . . . . . 10 . . . . . . . 5 . 4 Cave-ins Triggered 1 | . . . . . . . . . . . . . . . . . . 1 . . . . . . . . . . Teleports 1 | . . . . . . . . . . . . . . . . . . . . . . . . . . . . 1 Exploration Rate (%) 55 | 4 44 83 99 88 31 84 66 69 35 32 91 28 66 49 60 68 15 75 7 46 56 78 59 17 83 23 88 59 Regions Visited 28 Branch Regions 18 Pre-discovered Areas 12 | . . . 4 4 1 . . . . . . . . . 3 . . . . . . . . . . . . . Known Exits Taken 20 | . . . . 1 1 1 1 1 1 . . 1 1 1 1 1 . . 1 1 1 1 1 1 1 1 1 . Unknown Exits Taken 4 | 1 1 1 1 . . . . . . . . . . . . . . . . . . . . . . . . . Scrap Searched 31 | . . 13 . 8 . . . . . . . . 2 2 . 1 . . . 2 2 . 1 . . . . . Spaces Dug 328 | . . 7 . . 7 1 . . . 29 16 10 . 2 . 6 11 14 9 . 25 1 4 3 27 17 23 116 Terrain Destroyed 1524 | . . 33 1 . 41 15 4 1 14 133 16 148 96 9 . 9 99 16 46 6 60 1 6 5 155 50 63 497 Melee 6 | . . 1 . . 4 . . . . . . . . . . . . . . . . 1 . . . . . . Projectile 640 | . . . 1 . 23 15 4 1 1 41 16 51 4 9 . 9 25 16 25 6 7 . 6 5 70 23 45 237 AOE 878 | . . 32 . . 14 . . . 13 92 . 97 92 . . . 74 . 21 . 53 . . . 85 27 18 260 Terrain Rammed . | . . . . . . . . . . . . . . . . . . . . . . . . . . . . . Walls Destroyed . | . . . . . . . . . . . . . . . . . . . . . . . . . . . . . Machines Disabled . | . . . . . . . . . . . . . . . . . . . . . . . . . . . . . Actions | -11 -10 -10 -8 -8 -6 -6 -6 -6 -6 -5 -5 -5 -5 -5 -5 -4 -4 -4 -4 -4 -4 -4 -3 -3 -3 -2 -2 -2 --------- Run | Yrd Mat Sub Rec Scr Fac Ext Cet Arc Hub Fac Was Fac Upp Upp Zhi Pro Fac Was Fac Upp Upp War Pro Res Tes Res Qua Frg Total 37884 | 93 511 2416 6674 1641 1736 1032 217 472 406 1305 139 1391 380 369 180 550 918 125 564 371 387 666 590 816 1159 790 1234 10752 Wait 13086 | 1 61 514 3335 28 173 110 22 335 97 240 . 130 . 15 . 29 63 12 78 66 27 68 73 118 122 71 258 7040 Move 21198 | 78 380 1739 3088 1538 1325 735 151 100 273 844 111 979 358 317 145 470 692 101 396 293 308 511 484 608 845 624 785 2920 Hop . | . . . . . . . . . . . . . . . . . . . . . . . . . . . . . Pick Up 293 | 6 6 21 53 34 28 5 1 2 5 17 1 17 2 3 3 5 10 1 3 . 1 6 2 22 12 6 9 12 Fast Attach 268 | 6 2 2 5 2 26 16 4 6 2 5 . 21 1 6 6 3 15 1 10 1 5 10 4 14 9 10 15 61 Attach 104 | . . 3 1 1 9 1 . 2 2 7 1 16 2 1 4 2 4 . 4 . 7 3 . 2 2 5 7 18 Detach 107 | . . 1 4 3 3 1 . 4 1 5 . 9 1 3 5 1 4 . 1 . 5 11 1 2 6 6 8 22 Swap 386 | . 4 32 6 3 20 2 1 1 6 41 3 26 4 1 1 7 18 1 5 2 11 6 5 7 43 12 30 88 Drop 417 | . 7 21 58 32 35 20 7 4 5 5 1 17 . 5 7 4 20 . 9 1 6 9 5 33 22 12 26 46 Fire 1763 | 2 45 74 83 . 102 74 31 18 14 133 22 167 12 18 3 26 80 9 58 8 17 11 15 7 95 40 87 512 Melee 73 | . . 8 36 . 12 . . . . 1 . . . . 6 . . . . . . 1 . . . . 9 . Ram 3 | . . . . . . . . . . . . 3 . . . . . . . . . . . . . . . . Kick 11 | . . . . . . . . . . . . . . . . . . . . . . . 1 3 3 4 . . Crush 36 | . 6 . . . . 1 . . 1 7 . 6 . . . . 12 . . . . . . . . . . 3 Escape Stasis 3 | . . . . . 3 . . . . . . . . . . . . . . . . . . . . . . . Rewire 102 | . . . 5 . . 67 . . . . . . . . . . . . . . . 30 . . . . . . Trap 4 | . . 1 . . . . . . . . . . . . . 3 . . . . . . . . . . . . Miscellaneous 30 | . . . . . . . . . . . . . . . . . . . . . . . . . . . . 30 Route ------- -11/Scrapyard -10/Materials (discovered 3 exits: [*Mat] / [*Min] / *Sub) -10/Subcaves (discovered 3 exits: [*Mat] / *Rec / *Scr) -8/Recycling (discovered 2 exits: *Fac / *Scr) -8/Scraptown (discovered 2 exits: *Fac x2) -6/Factory (discovered 8 exits: *Fac x4 / *Low x2 / *Ext x2) -6/Extension (discovered 2 exits: *Fac / *Cet) -6/Cetus (discovered 2 exits: *Fac / *Arc) -6/Archives -6/Hub_04(d) (discovered 2 exits: *Fac x2) -5/Factory -5/Waste -5/Factory (discovered 3 exits: *Fac / *Upp x2) -5/Upper Caves -5/Upper Caves (discovered 2 exits: Fac / *Zhi) -5/Zhirov -4/Proximity Caves -4/Factory (discovered 5 exits: Res x3 / Upp / Arm) -4/Waste -4/Factory -4/Upper Caves -4/Upper Caves -4/Warlord -3/Proximity Caves -3/Research (discovered 4 exits: Res x2 / *Tes x2) -3/Testing -2/Research (discovered 2 exits: Acc / *Qua) -2/Quarantine (discovered 3 exits: *Acc / [*Sec] / *Frg) -2/Protoforge (discovered 1 exit: *Acc) History --------- Turn | Location | Event 3 | -11/Scrapyard | Discovered new exit (range 15) 143 | -11/Scrapyard | Entered Materials 295 | -10/Materials | Discovered new exit (range 13) 320 | -10/Materials | Build established: Mutant 488 | -10/Materials | Discovered new exit (range 11) 950 | -10/Materials | Discovered new exit (range 13) 972 | -10/Materials | Entered Subcaves 973 | -10/Subcaves | Approached by a straggling Scientist 982 | -10/Subcaves | Discovered new exit (range 11) 1072 | -10/Subcaves | A swath of the cavern ceiling suddenly collapsed 1359 | -10/Subcaves | Scientist uncovered a shortcut to Scraptown 1880 | -10/Subcaves | Learned Materials stockpile data 1916 | -10/Subcaves | Visited Clippyterm 1923 | -10/Subcaves | Learned Research security intel 1940 | -10/Subcaves | Shifting Twisted Machinery released Spk. Treads 2033 | -10/Subcaves | Shifting Twisted Machinery released Spk. Treads 2037 | -10/Subcaves | Shifting Twisted Machinery released Sub. Laser 2403 | -10/Subcaves | Visited 4L-MR0's lab 2433 | -10/Subcaves | Found Powered Cannon 2869 | -10/Subcaves | Learned location of 1 exit from Materials 2955 | -10/Subcaves | Shifting Twisted Machinery released Sub. Power Source 3070 | -10/Subcaves | Shifting Twisted Machinery released Battle Cannon 3303 | -10/Subcaves | Disturbed a concealed Subdweller 3386 | -10/Subcaves | Disturbed a concealed Subdweller 3392 | -10/Subcaves | Disturbed a concealed Subdweller 4705 | -10/Subcaves | Discovered new exit (range 3) 4708 | -10/Subcaves | Entered Recycling 5225 | -8/Recycling | Learned location of Lower Caves (-6) 5282 | -8/Recycling | Learned Factory trap positions 5286 | -8/Recycling | Discovered new exit (range 8) 5331 | -8/Recycling | Learned Factory scanalyzer intel 5369 | -8/Recycling | Learned location of Storage (-8) 5424 | -8/Recycling | Learned location of 1 exit from Storage 5482 | -8/Recycling | Learned location of Zion (-7) 5868 | -8/Recycling | Build established: Derelict-Mutant 13570 | -8/Recycling | Scanned before Scraplab entrance 13577 | -8/Recycling | Build established: Cobbler-Mutant 13610 | -8/Recycling | Entered Scraplab 13633 | -8/Recycling | Discovered new exit (range 4) 13645 | -8/Recycling | Entered Scraptown 13645 | -8/Scraptown | Accompanied by 1 ally 13646 | -8/Scraptown | Identified exit to Factory 14086 | -8/Scraptown | Heard Great Nut preacher, LISTEN AND RECITE! 14281 | -8/Scraptown | Scanned Subdweller tech in exchange for log data 14286 | -8/Scraptown | Learned 12 Factory zone layouts 14289 | -8/Scraptown | Learned location of Testing (-3) 14291 | -8/Scraptown | Learned Research terminal intel 14294 | -8/Scraptown | Learned location of 1 exit from Factory 14296 | -8/Scraptown | Learned Research trap positions 14494 | -8/Scraptown | Visited Bundlers 14656 | -8/Scraptown | Visited Cave Peace 14765 | -8/Scraptown | Visited Junk Repository 14817 | -8/Scraptown | Visited The Evicted 14875 | -8/Scraptown | Visited Assassins FH 14972 | -8/Scraptown | Visited Fellowship of the Rings 14987 | -8/Scraptown | Visited Shadow of the Wyrm 15377 | -8/Scraptown | Visited UFD Registry 15377 | -8/Scraptown | Registered with UFD as "Cryoslicer" 15466 | -8/Scraptown | Visited Abandonware Association 15502 | -8/Scraptown | Learned abandonware demo "TRNCOAT.EXE" 15577 | -8/Scraptown | Visited Curators Association 15671 | -8/Scraptown | Visited Observation Area 15731 | -8/Scraptown | Visited Cartography Club 15757 | -8/Scraptown | Visited A0-MCA Data Center 15796 | -8/Scraptown | Visited Infowarlord's Domain 15858 | -8/Scraptown | Visited Scrap Suit Storage 15909 | -8/Scraptown | Visited Science Guys 15997 | -8/Scraptown | Visited LU-1G1's Boring Crew 16039 | -8/Scraptown | Visited Research Penetration Think Tank 16265 | -8/Scraptown | Delivered Scrap Shield to a Scientist 16652 | -8/Scraptown | Found Surveybot 17 Chip 16668 | -8/Scraptown | Learned 16 Factory zone layouts 16668 | -8/Scraptown | Learned 20 Factory zone layouts 16668 | -8/Scraptown | Learned 8 Research zone layouts 16668 | -8/Scraptown | Learned 16 Research zone layouts 16668 | -8/Scraptown | Learned 8 Access zone layouts 16668 | -8/Scraptown | Learned 4 Mines zone layouts 16668 | -8/Scraptown | Learned 8 Lower Caves zone layouts 16668 | -8/Scraptown | Learned 12 Upper Caves zone layouts 16668 | -8/Scraptown | Learned 16 Upper Caves zone layouts 16668 | -8/Scraptown | Learned 20 Upper Caves zone layouts 16668 | -8/Scraptown | Learned Storage emergency access door positions 16668 | -8/Scraptown | Learned location of 3 exits from Factory 16668 | -8/Scraptown | Learned location of 1 exit from Upper Caves 16686 | -8/Scraptown | Found Deep Structural Scanner 16704 | -8/Scraptown | Given a B- rating by A0-MCA 16707 | -8/Scraptown | Found A0-MCA's Component Scanner 16884 | -8/Scraptown | Found Exp. Sensor Array 17237 | -8/Scraptown | Met Optimus 17237 | -8/Scraptown | Accepted into 0bPrime 17303 | -8/Scraptown | Entered Factory 17303 | -6/Factory | Accompanied by 1 ally 17303 | -6/Factory | Evolved 8 slots: Power x1, Propulsion x3, Utility x4 17304 | -6/Factory | Identified exit to Factory 17305 | -6/Factory | Identified exit to Extension 17305 | -6/Factory | Identified exit to Lower Caves 17307 | -6/Factory | Loaded intel: 98 trap records 17308 | -6/Factory | Loaded intel: 4 scanalyzer locations 17312 | -6/Factory | Found Scrap Suit 17314 | -6/Factory | Found Scrap Suit 17460 | -6/Factory | Loaded intel: 8 recycling unit locations 17754 | -6/Factory | Repaired Reactive Plating 17800 | -6/Factory | Repaired Broken Sub. Monowheel 18046 | -6/Factory | Learned location of Protoforge (-2) 18077 | -6/Factory | Found Powered Armor 18329 | -6/Factory | Spotted B-75 Beast 18462 | -6/Factory | Destroyed B-75 Beast 18891 | -6/Factory | Build established: Derelict-Mutant 19918 | -6/Factory | Build established: Mutant 20319 | -6/Factory | Entered Extension 20817 | -6/Extension | Loaded intel: 1 recycling unit location 20833 | -6/Extension | Attached Powered Cannon, gained temporary slot: Power 21012 | -6/Extension | Rescued a captive Derelict 21013 | -6/Extension | Rescued a captive Derelict 21294 | -6/Extension | Spotted B-75 Beast 21312 | -6/Extension | Destroyed B-75 Beast 21318 | -6/Extension | Spotted B-75 Beast 21335 | -6/Extension | Allies destroyed B-75 Beast 21454 | -6/Extension | Rescued a captive Derelict 21571 | -6/Extension | Rescued a captive Derelict 21573 | -6/Extension | Rescued a captive Derelict 21624 | -6/Extension | Build established: Scavenger-Mutant 21630 | -6/Extension | Rescued a captive Derelict 21656 | -6/Extension | Rescued A7 21810 | -6/Extension | Central database locked down 21855 | -6/Extension | Discovered exit to Factory (range 10) 21857 | -6/Extension | Discovered new exit (range 6) 21878 | -6/Extension | Identified exit to Cetus 21922 | -6/Extension | Entered Cetus 21922 | -6/Cetus | Accompanied by 16 allies (A7) 21927 | -6/Cetus | Acquired a Cetus Manufacturing Module code from A7 21946 | -6/Cetus | Spotted Cetus Guard 21946 | -6/Cetus | Spotted Cetus Guard 21953 | -6/Cetus | Destroyed Cetus Guard 21954 | -6/Cetus | Spotted Cetus Guard 21955 | -6/Cetus | Spotted Cetus Guard 21964 | -6/Cetus | Allies destroyed Cetus Guard 21964 | -6/Cetus | Destroyed Cetus Guard 21981 | -6/Cetus | Destroyed Cetus Guard 22011 | -6/Cetus | Lost 7 allies 22048 | -6/Cetus | Started Cetus Manufacturing Module 22062 | -6/Cetus | Escorted A7 to Cetus Mainframe 22073 | -6/Cetus | Manufactured an Enhanced Grunt 22081 | -6/Cetus | Discovered new exit (range 16) 22098 | -6/Cetus | Manufactured an Enhanced Grunt 22108 | -6/Cetus | Spotted Cetus Guard 22108 | -6/Cetus | Spotted Cetus Guard 22111 | -6/Cetus | Destroyed Cetus Guard 22118 | -6/Cetus | Spotted Cetus Guard 22119 | -6/Cetus | Spotted Cetus Guard 22122 | -6/Cetus | Destroyed Cetus Guard 22123 | -6/Cetus | Manufactured an Enhanced Grunt 22124 | -6/Cetus | Destroyed Cetus Guard 22126 | -6/Cetus | Core integrity fell below 50% 22131 | -6/Cetus | Destroyed Cetus Guard 22141 | -6/Cetus | Discovered exit to Factory (range 16) 22148 | -6/Cetus | Manufactured an Enhanced Grunt 22150 | -6/Cetus | Met Revision 17 22154 | -6/Cetus | Lost 3 allies 22173 | -6/Cetus | Manufactured an Enhanced Grunt 22233 | -6/Cetus | Identified exit to Archives 22253 | -6/Cetus | Entered Archives 22253 | -6/Archives | Accompanied by 10 allies (A7) 22258 | -6/Archives | Received a hacking code to weaken MAIN.C 22718 | -6/Archives | Discovered new exit (range 16) 22771 | -6/Archives | Identified exit to Hub_04(d) 22799 | -6/Archives | Entered Hub_04(d) 22799 | -6/Hub_04(d) | Accompanied by 7 allies 23153 | -6/Hub_04(d) | Discovered exit to Factory (range 9) 23204 | -6/Hub_04(d) | Discovered exit to Factory (range 13) 23334 | -6/Hub_04(d) | Network Hub disabled 23334 | -6/Hub_04(d) | Network Hub disabled 23387 | -6/Hub_04(d) | Entered Factory 23387 | -5/Factory | Accompanied by 5 allies 23387 | -5/Factory | Evolved 2 slots: Propulsion x1, Utility x1 23518 | -5/Factory | Loaded intel: 8 recycling unit locations 23687 | -5/Factory | First assault squad dispatched 23699 | -5/Factory | Repaired Broken Centrium Heavy Treads? 23902 | -5/Factory | Build established: Scavenger-Skirmisher 23979 | -5/Factory | Lost 3 allies 24283 | -5/Factory | Repaired Imp. Heavy Armor Plating 24694 | -5/Factory | Build established: Scavenger-Mutant 25366 | -5/Factory | Garrison activated, responded to threat 25390 | -5/Factory | Destroyed 8 combat bots 25442 | -5/Factory | Sucked down chute 25442 | -5/Factory | Entered Waste 25457 | -5/Waste | EMP discharged 25457 | -5/Waste | System corruption reached 10% 25494 | -5/Waste | Spotted C-40 Crusher 25497 | -5/Waste | Spotted C-40 Crusher 25499 | -5/Waste | Spotted C-40 Crusher 25501 | -5/Waste | Destroyed C-40 Crusher 25503 | -5/Waste | Spotted C-40 Crusher 25508 | -5/Waste | Spotted C-40 Crusher 25557 | -5/Waste | EMP discharged 25581 | -5/Waste | Spotted C-40 Crusher 25657 | -5/Waste | EMP discharged 25658 | -5/Waste | Discovered new exit (range 12) 25674 | -5/Waste | Identified exit to Factory 25676 | -5/Waste | Entered Factory 25893 | -5/Factory | Repaired Centrium Heavy Treads? 26007 | -5/Factory | Loaded intel: 8 recycling unit locations 26956 | -5/Factory | Destroyed 9 combat bots 27021 | -5/Factory | Discovered new exit (range 14) 27063 | -5/Factory | Lost 4 parts (1p2u1w) 27176 | -5/Factory | First assault squad dispatched 27280 | -5/Factory | Spotted B-75 Beast 27333 | -5/Factory | Destroyed B-75 Beast 27425 | -5/Factory | Identified exit to Upper Caves 27547 | -5/Factory | Repaired Centrium Heavy Treads 27595 | -5/Factory | Core integrity fell below 50% 27607 | -5/Factory | Scraphulk reinforcements arrived? 27970 | -5/Factory | Entered Upper Caves 27971 | -5/Upper Caves | Identified exit to Upper Caves 27972 | -5/Upper Caves | UFD Scientist delivered a prototype 28001 | -5/Upper Caves | Found Prototype Protection 28014 | -5/Upper Caves | Destroyed 8 combat bots 28309 | -5/Upper Caves | Attracted the attention of an 0b10 checkpoint 28415 | -5/Upper Caves | Encountered a Warlord checkpoint 28585 | -5/Upper Caves | Entered another Upper Caves area 28586 | -5/Upper Caves | Identified exit to Factory 28587 | -5/Upper Caves | Discovered new exit (range 107) 28810 | -5/Upper Caves | Learned 4 Factory zone layouts 28995 | -5/Upper Caves | Attacked by a delusional Derelict stockpiling parts 29125 | -5/Upper Caves | Identified exit to Zhirov 29155 | -5/Upper Caves | Found Alien Artifact 29155 | -5/Upper Caves | Identified Core Expander 29155 | -5/Upper Caves | Installed Core Expander, added new Propulsion slot 29187 | -5/Upper Caves | Entered Zhirov 29187 | -5/Zhirov | Discovered new exit (range 3) 29189 | -5/Zhirov | Identified exit to Proximity Caves 29219 | -5/Zhirov | Met Zhirov 29258 | -5/Zhirov | Learned location of Quarantine (-2) 29258 | -5/Zhirov | Learned location of Command (-1) 29268 | -5/Zhirov | Zhirov requested help retrieving the SGEMP Prototype 29293 | -5/Zhirov | Found Alien Artifact 29293 | -5/Zhirov | Identified Integrated Reactor 29293 | -5/Zhirov | Installed Integrated Reactor, increased core energy generation (+10) 29401 | -5/Zhirov | Found Alien Artifact 29464 | -5/Zhirov | Entered Proximity Caves 29614 | -4/Proximity Caves | Learned Research garrison access intel 29669 | -4/Proximity Caves | Attracted the attention of an 0b10 checkpoint 29849 | -4/Proximity Caves | Spotted B-86 Titan 29908 | -4/Proximity Caves | Destroyed B-86 Titan 30314 | -4/Proximity Caves | Discovered exit to Factory (range 13) 30337 | -4/Proximity Caves | System corruption reached 30% 30341 | -4/Proximity Caves | Entered Factory 30341 | -4/Factory | Evolved 2 slots: Power x1, Utility x1 30342 | -4/Factory | Identified exit to Research 30342 | -4/Factory | Identified exit to Upper Caves 30342 | -4/Factory | Identified exit to Armory 30476 | -4/Factory | Identified Enh. Scrap Shield 30830 | -4/Factory | Loaded intel: 8 recycling unit locations 31829 | -4/Factory | Sucked down chute 31829 | -4/Factory | Entered Waste 31844 | -4/Waste | EMP discharged 31868 | -4/Waste | Spotted C-40 Crusher 31869 | -4/Waste | Spotted C-40 Crusher 31890 | -4/Waste | Spotted C-40 Crusher 31892 | -4/Waste | Spotted C-40 Crusher 31896 | -4/Waste | Spotted C-40 Crusher 31901 | -4/Waste | Spotted C-40 Crusher 31939 | -4/Waste | Crushed by falling debris 31944 | -4/Waste | EMP discharged 31944 | -4/Waste | System corruption reached 10% 31995 | -4/Waste | Discovered new exit (range 15) 32031 | -4/Waste | Identified exit to Factory 32033 | -4/Waste | Entered Factory 32318 | -4/Factory | Discovered exit to Upper Caves (range 16) 32338 | -4/Factory | Loaded intel: 8 recycling unit locations 32962 | -4/Factory | Entered Upper Caves 32963 | -4/Upper Caves | Identified exit to Upper Caves 33031 | -4/Upper Caves | Encountered a Warlord checkpoint 33541 | -4/Upper Caves | Entered another Upper Caves area 33884 | -4/Upper Caves | Spotted B-86 Titan 33928 | -4/Upper Caves | Destroyed B-86 Titan 34157 | -4/Upper Caves | Learned Research stockpile data 34168 | -4/Upper Caves | Discovered new exit (range 11) 34190 | -4/Upper Caves | Identified exit to Warlord 34195 | -4/Upper Caves | Entered Warlord 34196 | -4/Warlord | Identified exit to Proximity Caves 34236 | -4/Warlord | System corruption cleaned by Quarantine Array 34699 | -4/Warlord | Found Prototype Reactor 34733 | -4/Warlord | Found Prototype Hackware 34738 | -4/Warlord | Found Prototype Device 34738 | -4/Warlord | Identified System Purifier 34742 | -4/Warlord | Found Prototype Processor 34742 | -4/Warlord | Identified Spectral Analyzer 34749 | -4/Warlord | Found Prototype Device 34749 | -4/Warlord | Identified Exp. Phase Shifter 34898 | -4/Warlord | Opened side exit 34976 | -4/Warlord | Entered Proximity Caves 34976 | -3/Proximity Caves | Accompanied by 5 allies 35117 | -3/Proximity Caves | Attracted the attention of an 0b10 checkpoint 35399 | -3/Proximity Caves | Encountered a Derelict sapper outpost 35471 | -3/Proximity Caves | Discovered exit to Research (range 9) 35667 | -3/Proximity Caves | Entered Research 35667 | -3/Research | Accompanied by 3 allies 35667 | -3/Research | Evolved 2 slots: Utility x1, Weapon x1 35668 | -3/Research | Identified exit to Testing 35668 | -3/Research | Identified exit to Research 35669 | -3/Research | Loaded intel: 87 trap records 35672 | -3/Research | Loaded intel: 23 terminal locations 35673 | -3/Research | Loaded intel: 4 garrison access locations 35867 | -3/Research | Revision forces began assault on 0b10 36014 | -3/Research | Build established: Scavenger-Gunner 36052 | -3/Research | Met up with Revision 17++ 36248 | -3/Research | Identified Vortex Chain Reactor 36250 | -3/Research | Identified System Mapper 36267 | -3/Research | Loaded intel: 5 recycling unit locations 36367 | -3/Research | Research terminal network offline 36387 | -3/Research | Repaired Huge Storage Unit 36499 | -3/Research | Repaired Adv. Transmission Jammer 36571 | -3/Research | Entered Testing 36571 | -3/Testing | Accompanied by 1 ally 36591 | -3/Testing | Found Prototype Device 36609 | -3/Testing | Identified Exp. Focal Shield 36759 | -3/Testing | Found Prototype Device 36787 | -3/Testing | Identified Exp. ECM Suite 36837 | -3/Testing | Found Prototype Hackware 36864 | -3/Testing | Identified Ghost Barrier 37020 | -3/Testing | Build established: Gunner 37405 | -3/Testing | Found Prototype Protection 37405 | -3/Testing | Identified SHELL Armor 37540 | -3/Testing | Destroyed 9 combat bots 37594 | -3/Testing | Found Prototype Energy Cannon 37594 | -3/Testing | Identified Cld. Nova Cannon 37617 | -3/Testing | Repaired Exp. Myomer Leg? 37808 | -3/Testing | Fabricated Exp. Signal Interpreter? 37836 | -3/Testing | Discovered exit to Research (range 12) 38057 | -3/Testing | Entered Research 38057 | -2/Research | Evolved 2 slots: Utility x2 38058 | -2/Research | Identified exit to Access 38124 | -2/Research | Loaded intel: 5 recycling unit locations 38191 | -2/Research | Fabricated A-27 Freighter? 38883 | -2/Research | Spotted B-90 Cyclops 38922 | -2/Research | Destroyed B-90 Cyclops 38989 | -2/Research | Discovered new exit (range 8) 38997 | -2/Research | Identified exit to Quarantine 39022 | -2/Research | Entered Quarantine 39303 | -2/Quarantine | Found Alien Reactor 39425 | -2/Quarantine | Found Alien Energy Cannon 39467 | -2/Quarantine | Found Alien Artifact 39560 | -2/Quarantine | Cryocooling Duct disabled 39575 | -2/Quarantine | Ambient heat levels rising (+20) 39575 | -2/Quarantine | Non-combat units ordered to evacuate 39910 | -2/Quarantine | Found Alien Impact Weapon 40282 | -2/Quarantine | Discovered exit to Access (range 12) 40372 | -2/Quarantine | Identified Core Stripper 40376 | -2/Quarantine | Spotted Fortress 40413 | -2/Quarantine | Destroyed Fortress 40441 | -2/Quarantine | Found Prototype Device 40441 | -2/Quarantine | Identified Thermal Barrier 40444 | -2/Quarantine | Found Prototype Device 40444 | -2/Quarantine | Identified Exp. Force Field 40455 | -2/Quarantine | Found Prototype Device 40455 | -2/Quarantine | Identified Exp. EM Shield 40602 | -2/Quarantine | Discovered new exit (range 6) 40602 | -2/Quarantine | Discovered new exit (range 7) 40608 | -2/Quarantine | Identified exit to Protoforge 40613 | -2/Quarantine | Entered Protoforge 40829 | -2/Protoforge | Spotted Hotshot 40836 | -2/Protoforge | Spotted Hotshot 40848 | -2/Protoforge | Destroyed Hotshot 40857 | -2/Protoforge | Spotted Hotshot 40858 | -2/Protoforge | Destroyed Hotshot 40859 | -2/Protoforge | Spotted Hotshot 40877 | -2/Protoforge | Destroyed Hotshot 40894 | -2/Protoforge | Destroyed Hotshot 40918 | -2/Protoforge | Destroyed 7 combat bots 41087 | -2/Protoforge | Superfortress began startup sequence 41198 | -2/Protoforge | Discovered exit to Access (range 5) 41336 | -2/Protoforge | Spotted Hotshot 41341 | -2/Protoforge | Spotted Hotshot 41353 | -2/Protoforge | Destroyed Hotshot 41381 | -2/Protoforge | Destroyed 7 combat bots 41558 | -2/Protoforge | Found Prototype Storage 41558 | -2/Protoforge | Identified Cep. NT7 Matterbank 41589 | -2/Protoforge | Identified Core Cannon 41590 | -2/Protoforge | Additional patrols dispatched to research labs 41605 | -2/Protoforge | Found Prototype Device 41716 | -2/Protoforge | Destroyed 10 combat bots 41863 | -2/Protoforge | First assault squad dispatched 41955 | -2/Protoforge | Build established: Tank 42621 | -2/Protoforge | Spotted EXE-6 42621 | -2/Protoforge | Spotted EXE-6 42639 | -2/Protoforge | Destroyed EXE-6 42646 | -2/Protoforge | Destroyed EXE-6 42651 | -2/Protoforge | Found Prototype Processor 42651 | -2/Protoforge | Identified Exp. Core Analyzer 42685 | -2/Protoforge | Spotted Decapitator 42686 | -2/Protoforge | Spotted Decapitator 42688 | -2/Protoforge | Destroyed Decapitator 42695 | -2/Protoforge | Destroyed Decapitator 42759 | -2/Protoforge | UFD initiated attack on Protoforge 42759 | -2/Protoforge | Loaded intel: 3 recycling unit locations 42791 | -2/Protoforge | Spotted EXE-6 42791 | -2/Protoforge | Spotted EXE-6 42796 | -2/Protoforge | Optimus greeted in Protoforge 42817 | -2/Protoforge | Found Prototype Ballistic Gun 42817 | -2/Protoforge | Identified Cep. XC Strikerail 42821 | -2/Protoforge | Found Prototype Processor 42821 | -2/Protoforge | Identified Exp. Armor Integrity Analyzer 42839 | -2/Protoforge | Found Cep. XC Strikerail 42843 | -2/Protoforge | Found Cep. XC Strikerail 42850 | -2/Protoforge | Found Exp. Core Analyzer 42853 | -2/Protoforge | Found Prototype Device 42853 | -2/Protoforge | Identified Exp. Kinecellerator 42856 | -2/Protoforge | Identified Cep. Weapon Articulator 42890 | -2/Protoforge | Met 7R-MNS 42911 | -2/Protoforge | Found UFD Drillbomb 42994 | -2/Protoforge | Spotted AP7-3 43002 | -2/Protoforge | Spotted Striker 43002 | -2/Protoforge | Destroyed AP7-3 43008 | -2/Protoforge | Spotted Striker 43033 | -2/Protoforge | Lost 4 allies 43074 | -2/Protoforge | Spotted Striker 43075 | -2/Protoforge | Destroyed Striker 43076 | -2/Protoforge | Spotted Striker 43077 | -2/Protoforge | Lost 5 allies 43079 | -2/Protoforge | Spotted Executioner 43079 | -2/Protoforge | Destroyed Striker 43080 | -2/Protoforge | Spotted Striker 43088 | -2/Protoforge | Destroyed Executioner 43109 | -2/Protoforge | Spotted Executioner 43118 | -2/Protoforge | Spotted Executioner 43136 | -2/Protoforge | Destroyed Executioner 43143 | -2/Protoforge | Spotted Hotshot 43145 | -2/Protoforge | Destroyed Hotshot 43145 | -2/Protoforge | Spotted Hotshot 43148 | -2/Protoforge | Spotted Overlord 43152 | -2/Protoforge | Destroyed Hotshot 43156 | -2/Protoforge | Build established: Scavenger-Gunner 43164 | -2/Protoforge | Lost 3 parts (2u1w) 43169 | -2/Protoforge | Found Prototype Processor 43169 | -2/Protoforge | Identified Exp. Targeting Computer 43184 | -2/Protoforge | Destroyed 22 combat bots 43196 | -2/Protoforge | Lost 9 allies 43208 | -2/Protoforge | Spotted Executioner 43213 | -2/Protoforge | Spotted Executioner 43215 | -2/Protoforge | Spotted Executioner 43220 | -2/Protoforge | Spotted Executioner 43225 | -2/Protoforge | UFD reported confirmed Drillbomb installation 43238 | -2/Protoforge | Destroyed Executioner 43265 | -2/Protoforge | Lost 3 allies 43298 | -2/Protoforge | Destroyed 7 combat bots 43351 | -2/Protoforge | Spotted Striker 43364 | -2/Protoforge | Spotted Striker 43369 | -2/Protoforge | Spotted Executioner 43418 | -2/Protoforge | Spotted Striker 43422 | -2/Protoforge | Spotted Striker 43423 | -2/Protoforge | Destroyed Striker 43426 | -2/Protoforge | Destroyed Striker 43436 | -2/Protoforge | Lost 17 allies 43440 | -2/Protoforge | Spotted Striker 43441 | -2/Protoforge | Spotted Striker 43450 | -2/Protoforge | Destroyed Striker 43472 | -2/Protoforge | Spotted Executioner 43476 | -2/Protoforge | Spotted Executioner 43479 | -2/Protoforge | Destroyed Executioner 43486 | -2/Protoforge | Destroyed Executioner 43514 | -2/Protoforge | Spotted Striker 43516 | -2/Protoforge | Spotted Striker 43520 | -2/Protoforge | Destroyed 9 combat bots 43520 | -2/Protoforge | Lost 3 allies 43524 | -2/Protoforge | Spotted Executioner 43524 | -2/Protoforge | Spotted Striker 43524 | -2/Protoforge | Destroyed Striker 43539 | -2/Protoforge | System corruption reached 10% 43539 | -2/Protoforge | Destroyed Striker 43545 | -2/Protoforge | Destroyed Executioner 43557 | -2/Protoforge | Destroyed Striker 43557 | -2/Protoforge | Spotted Striker 43561 | -2/Protoforge | Spotted Striker 43570 | -2/Protoforge | Destroyed Striker 43579 | -2/Protoforge | Destroyed Striker 43615 | -2/Protoforge | Destroyed 25 combat bots 43619 | -2/Protoforge | Spotted Striker 43620 | -2/Protoforge | Spotted Executioner 43621 | -2/Protoforge | Spotted Executioner 43622 | -2/Protoforge | Spotted Striker 43626 | -2/Protoforge | Destroyed Striker 43634 | -2/Protoforge | Destroyed Executioner 43635 | -2/Protoforge | Spotted Executioner 43637 | -2/Protoforge | Destroyed Executioner 43637 | -2/Protoforge | Destroyed Striker 43641 | -2/Protoforge | Spotted Executioner 43654 | -2/Protoforge | Destroyed Executioner 43680 | -2/Protoforge | Destroyed 16 combat bots 43709 | -2/Protoforge | Spotted Striker 43709 | -2/Protoforge | Spotted Striker 43709 | -2/Protoforge | Spotted Striker 43710 | -2/Protoforge | Spotted Striker 43723 | -2/Protoforge | Destroyed Striker 43734 | -2/Protoforge | Spotted Executioner 43736 | -2/Protoforge | Spotted Striker 43736 | -2/Protoforge | Destroyed Striker 43742 | -2/Protoforge | Core integrity fell below 50% 43748 | -2/Protoforge | Identified Transdimensional Reconstructor 43748 | -2/Protoforge | Warped through subspace 43748 | -2/Protoforge | Spotted Decapitator 43748 | -2/Protoforge | Spotted Decapitator 43766 | -2/Protoforge | Lost 11 allies 43772 | -2/Protoforge | Destroyed Decapitator 43782 | -2/Protoforge | Destroyed Decapitator 43795 | -2/Protoforge | Lost 8 parts (3n2u3w) 43875 | -2/Protoforge | Identified Subatomic Replicator 43875 | -2/Protoforge | Used Subatomic Replicator to replicate UFD Drillbomb 43890 | -2/Protoforge | Installed UFD Drillbomb at designated target 43890 | -2/Protoforge | UFD reported confirmed Drillbomb installation 43915 | -2/Protoforge | Build established: Scavenger-Mutant 43990 | -2/Protoforge | Installed UFD Drillbomb at designated target 43990 | -2/Protoforge | UFD reported confirmed Drillbomb installation 44011 | -2/Protoforge | Spotted Executioner 44011 | -2/Protoforge | Spotted Executioner 44011 | -2/Protoforge | Spotted Executioner 44011 | -2/Protoforge | Spotted Executioner 44122 | -2/Protoforge | UFD reported confirmed Drillbomb installation 44157 | -2/Protoforge | Found Prototype Device 44157 | -2/Protoforge | Identified Adv. Kinecellerator 44191 | -2/Protoforge | Spotted Striker 44241 | -2/Protoforge | Found Corrupted Unknown Device 44241 | -2/Protoforge | Identified Scrap Suit 44294 | -2/Protoforge | Spotted Executioner 44296 | -2/Protoforge | Spotted Executioner 44333 | -2/Protoforge | Lost 4 allies 44442 | -2/Protoforge | Spotted Executioner 44450 | -2/Protoforge | Spotted Executioner 44456 | -2/Protoforge | Destroyed Executioner 44462 | -2/Protoforge | Spotted Executioner 44464 | -2/Protoforge | Destroyed Executioner 44464 | -2/Protoforge | Spotted Executioner 44467 | -2/Protoforge | Spotted Striker 44468 | -2/Protoforge | Destroyed Executioner 44484 | -2/Protoforge | Destroyed Executioner 44493 | -2/Protoforge | Destroyed Striker 44499 | -2/Protoforge | Spotted Executioner 44504 | -2/Protoforge | Spotted Executioner 44514 | -2/Protoforge | Core integrity fell below 20% 44525 | -2/Protoforge | Destroyed Executioner 44532 | -2/Protoforge | Destroyed Executioner 44534 | -2/Protoforge | UFD reported confirmed Drillbomb installation 44540 | -2/Protoforge | Lost 3 parts (1p1u1w) 44547 | -2/Protoforge | Lost 13 allies 44553 | -2/Protoforge | Destroyed 20 combat bots 44561 | -2/Protoforge | Spotted Executioner 44563 | -2/Protoforge | Spotted Striker 44565 | -2/Protoforge | Destroyed Executioner 44567 | -2/Protoforge | Destroyed Striker 44567 | -2/Protoforge | Spotted Executioner 44568 | -2/Protoforge | Destroyed Executioner 44571 | -2/Protoforge | Spotted Striker 44596 | -2/Protoforge | UFD reported confirmed Drillbomb installation 44621 | -2/Protoforge | Spotted Executioner 44623 | -2/Protoforge | Found Scrap Suit 44670 | -2/Protoforge | Lost 12 allies 44709 | -2/Protoforge | Spotted Striker 44711 | -2/Protoforge | Spotted Striker 44712 | -2/Protoforge | Destroyed Striker 44716 | -2/Protoforge | Destroyed Striker 44924 | -2/Protoforge | Spotted Executioner 44927 | -2/Protoforge | Spotted Executioner 44929 | -2/Protoforge | Destroyed Executioner 44929 | -2/Protoforge | Spotted Striker 44934 | -2/Protoforge | Build established: Scavenger-Scrapper 44945 | -2/Protoforge | P-80 Master assimilated allied 02FDO-D 44953 | -2/Protoforge | Destroyed Striker 44971 | -2/Protoforge | Spotted Executioner 44973 | -2/Protoforge | Spotted Executioner 45012 | -2/Protoforge | Destroyed Executioner 45039 | -2/Protoforge | Lost 12 allies 45054 | -2/Protoforge | Spotted Striker 45070 | -2/Protoforge | Spotted Striker 45072 | -2/Protoforge | Spotted Striker 45083 | -2/Protoforge | Destroyed Striker 45092 | -2/Protoforge | Destroyed Striker 45117 | -2/Protoforge | Spotted Executioner 45123 | -2/Protoforge | Spotted Executioner 45136 | -2/Protoforge | Lost 6 parts (1p2n2u1w) 45152 | -2/Protoforge | Destroyed 10 combat bots 45158 | -2/Protoforge | Found Unknown Device 45158 | -2/Protoforge | Identified 0bPrime Scrap Suit 45162 | -2/Protoforge | Lost 12 allies 45307 | -2/Protoforge | Spotted Striker 45314 | -2/Protoforge | Spotted Striker 45372 | -2/Protoforge | Spotted Executioner 45405 | -2/Protoforge | Spotted Executioner 45540 | -2/Protoforge | Spotted Executioner 45542 | -2/Protoforge | Spotted Striker 45544 | -2/Protoforge | Destroyed Executioner 45545 | -2/Protoforge | Destroyed Striker 45599 | -2/Protoforge | Spotted Executioner 45601 | -2/Protoforge | Spotted Striker 45969 | -2/Protoforge | UFD reported confirmed Drillbomb installation 46020 | -2/Protoforge | UFD reported confirmed Drillbomb installation 47136 | -2/Protoforge | UFD reported confirmed Drillbomb installation 52423 | -2/Protoforge | Spotted Striker 52424 | -2/Protoforge | Spotted Executioner 52425 | -2/Protoforge | Spotted Executioner 52488 | -2/Protoforge | Spotted Striker 52489 | -2/Protoforge | Spotted Striker 52492 | -2/Protoforge | Destroyed Striker 52534 | -2/Protoforge | Spotted Striker 52572 | -2/Protoforge | Lost 16 allies 52588 | -2/Protoforge | Spotted Striker 52591 | -2/Protoforge | Spotted Executioner 52600 | -2/Protoforge | Destroyed by Executioner with Helical Railgun Last Messages --------------- 52594_ 4H-33F(E) destroyed. 52594_ N-04 Retriever collects Mak. Medium Armor Plating. 52595_ Slug penetrates Striker. 52595_ Destroyed Lgt. Quantum Reactor. 52595_ HV Slug penetrates Striker. 52595_ Striker suffers critical hit (Destroy). 52595_ Destroyed Prototype Device. 52596_ Acquired 12 matter. 52596_ N-04 Retriever collects Ovr. Medium Treads. 52596_ N-04 Retriever collects Imp. Deuterium Engine. 52597_ N-04 Retriever collects Mak. Medium Armor Plating. 52597_ N-04 Retriever collects Ovr. Coil Gun. 52597_ Penetrated by Slug. 52598_ Acquired 7 matter. 52599_ HV Slug penetrates N-04 Retriever. 52599_ N-04 Retriever suffers critical hit (Destroy). 52599_ Destroyed Linear Gravjet. 52600_ Acquired 7 matter. 52600_ N-04 Retriever collects Unknown Device. 52600_ Penetrated by Slug. Map ----- +----------------------------------------------------+ | ###???????????????????# " " % " " | | ###???????????????????# " " % " """" | | ###???????????????????# "" " " """"" | | ###???????????????????# " % % """""" | | ###???????????????????# " %% """"""" | | ###???????#???????????# % """""""" | | ###?????## #?????###??# %" %""""""""" | | ###????## # ?##??# #??# "" " %% """""""""" | | ######## # ## ### #??# " " % """""""""" | | ?? # # # # ## #??# %" % %%% """""""""" | | ??# # # # # #### %= % % "%""""""""""" | | ### # # # # ## !% % %" % """"""""""" | | # # # # # #=% % % %% """"""""""" | | # # # ! % % % % """"""""""" | | # ! % %%%% % """"""""""" | | # % """"""""""" | | % # %=% %% " """"""""""" | | #% m%% %% % " " """"""""""" | | %" "" % #% % %% %""""""""""" | | " = [ [# %% n% % % """""""""" | | " ! %=! =*=*|[# % % """""""""" | | * [![! !!!*![#% %% " %" %"""""""""" | | *! %; %% !*%!=*!!==![=#%%%% % %% % %% """"""""" | | != !! ! %!%%%%%%%%%%#%% %% % """""""" | | %% %=!=! %%%n%%n%%%%%%%%% %%% % """"""" | | % %%!=% %%%%%%%%%%%%K%%%%@% %%%% %""% """""" | | [!%%=[!%n%%%%%%%%%%%%%%%%%%% % % % % %% %%""""" | | %%%%%%%%%l%%%%%%%%%%%%#%%%%%%% %%%% %%%%%% %"""" | | %%%%gE%n%%b%%!*[%%% %/#%%%%%%%%s%s%%%%%%%%%%%%n% " | | %%%%%%gs%%%[!%%%% %%*%#%%%%%%%s%%%%%%%%%%%%n%%%% % | | %%%%%%%=%%=%%%%%% %[!!#!%%%%%%%%%%%%%s%%%%%%%%%%% | | %!%%%=%! %% %%% %=*!#!=% % %%%%%% %%%%%%% %% %% | | !=%%!]% %% %%%% [#[[% %!%% %%%%A% % % %% %% | | *=!!!%* %%%%%*% "#%[=!%= [%% % % %% %%%% | | %!!%*%[%% %%%%% % "# ! % %%%%% "% % % | | =!%%%%%%%%%%! "#[ % % %%% % | | % %%%%%%%!% % % # " % % | | % %%[%%"% % %%"# " *%% ! % | | %% %!% % " %" """"#=!" % !/! ! = | | % % % % ""%* #%% ! !=![%=[! | | % %" %%%"%"%!%# # %% %" ! * | | %[! !%% % % %% ##%% %!" % | | %%% %!%%% % % " #% " %%%% % | | ==[ %% # # " !% % | | %"""%%!%%## ######## %################## | | ## %%% %%%% [% ###########????????????????? | | ### " % " %# ########???????????????????? | | #####"""%% !|"#"#"###########???????????????????? | | """"" !*%% " # # ##### ####???????????????????? | | """"""!%#!=%# # ####### #####???????????????????? | +----------------------------------------------------+ Best States ------------- Heat Dissipation 197 Coolant Potential 120 Energy Generation 93 Energy Capacity 1900 Matter Stores 300 Matter Capacity 1050 Sight Range 23 Robot Scan Range 20 Terrain Scan Density 10 Jamming Range 16 Power Amplification 40 Corruption Containment 8 Armor Coverage 1800 Resistance: KI 30 Resistance: TH 30 Resistance: EM 75 Core Shielding 10 Weapon Cycling 25 Phase Shifting 20 Evasion (%) 80 Targeting Accuracy 12 Core Analysis 12 Armor Integrity Analysis 50 Recoil Reduction 7 Kinecelleration 66 Offensive Hacking 20 Defensive Hacking 14 Item Schematics ----------------- Myomer Leg | -6/Factory | Downloaded Centrium Heavy Treads | -5/Factory | Scanalyzed Assault Drone Bay | -5/Zhirov | Free Exp. Heat Sink | -5/Zhirov | Free Exp. Optical Array | -5/Zhirov | Free Imp. Arc Thrower | -5/Zhirov | Free Exp. Signal Interpreter | -3/Testing | Archive Exp. Target Analyzer | -3/Testing | Archive Com. Particle Reactor | -3/Testing | Archive Adv. Matter Compressor | -3/Testing | Archive Robot Schematics ------------------ X-62 Marksman | -6/Factory | Hacked Fabricated ------------ Exp. Signal Interpreter | x1 | -3/Testing A-27 Freighter | x1 | -2/Research | Preloaded Repaired ---------- Reactive Plating | 58% | -6/Factory Sub. Monowheel | 99% | -6/Factory | Broken Centrium Heavy Treads | 52% | -5/Factory | Broken Imp. Heavy Armor Plating | 57% | -5/Factory Centrium Heavy Treads | 22% | -5/Factory Centrium Heavy Treads | 4% | -5/Factory Huge Storage Unit | 61% | -3/Research Adv. Transmission Jammer | 40% | -3/Research Exp. Myomer Leg | 24% | -3/Testing Alien Tech Used ----------------- Core Expander Integrated Reactor Core Stripper Core Cannon Transdimensional Reconstructor Subatomic Replicator Achievements -------------- None Challenges ------------ None Game ------ Seed CatalystRecyclingBlasthammer Manual? 0 Play Time 06:00:53 Cumulative 1905.8 hours Start 2025.07.16 @ 03:02:27 End 2025.07.17 @ 05:53:43 Sessions 7 Manual Loads 0 Difficulty Rogue Special Mode None Game No. 1254 Rogue 1250 Adventurer 4 Explorer 0 Win Type - Total 246 Types 183/12/19/10/3/1/4/9/4/1 Lore% 98 Gallery% 94 Achievement% 98 Wizard Run 0 Options --------- Layout 2 ASCII 0 Keyboard 1 Movement Vi Keybinds 0 Fullscreen 0 Font 24/Terminus Map View 59x48 Zoom Use 0% Tactical HUD 1 Map Filters NONE Filters NONE Steam 1 RUN: c0516afb-fff2-49db-9c13-51008a74e5df